Card Number,Card ID,Card Name,Card Type,Card User,Reference,Tran Type,Tran ID,Tran Date,Tran Year,Tran Period,Comm Date,Orig Comm Year,Orig Comm Period,Curr Comm Year,Curr Comm Period,Value,VAT Value,Nett Value,VAT Code,VAT Rate,VAT Year,VAT Period,VAT Inv,VAT Number,Supplier,Description,Purchase Type,Cost Centre,Account,Classification,Additional Ref,Department,Section,Compared,Compared Date,Compared By,Compared ID,Batch/Run Id,Disputed,Dispute Date,Dispute By,Dispute Reason,Authorised,Authorised Date,Authorised By,Jnl Date,Jnl Year,Jnl Period,Entered By,Entered Date,Year End Proc,Year End Ind
************5113,6,Mr Duncan J Byrne,U,Duncan Byrne,14596,B,14596,05/09/2023,0,,01/01/1900,0,,0,,3.00,,,,,0,,,,TICKET TAILOR,,,,,,,,,N,,,0,286,N,,,,N,,,01/01/1900,0,,MBLACK,29/09/2023 09:37,,
************5113,6,Mr Duncan J Byrne,U,Duncan Byrne,14567,B,14567,31/08/2023,0,,01/01/1900,0,,0,,4.29,,,,,0,,,,AMZNMKTPLACE,,,,,,,,,N,,,0,286,N,,,,N,,,01/01/1900,0,,MBLACK,29/09/2023 09:37,,
************5113,6,Mr Duncan J Byrne,U,Duncan Byrne,14568,B,14568,31/08/2023,0,,01/01/1900,0,,0,,14.95,,,,,0,,,,HOBBYCRAFT TRADING LIM,,,,,,,,,N,,,0,286,N,,,,N,,,01/01/1900,0,,MBLACK,29/09/2023 09:37,,
************5113,6,Mr Duncan J Byrne,U,Duncan Byrne,10374,C,10374,23/08/2023,2023,5,26/08/2023,2023,5,2023,5,44.50,7.42,37.08,B,20%,2023,5,Y,343475355,Morrisons Supermarket,2x Asparagus Bag -2.40 3x Serving Plates - 7.50 1x Lemon Concentrate - 0.99 1x Apple & Blackcurrant Squash - 0.99 1x Orange Squash - 0.99 2x Bottle Green Cordial - 8.50 1x Vimto - 3.00 8x Crisps - 17.16 3x Pack Serviettes -2.97 (for Vol Thank you,Other,3131,46842,,,People and Places,People and Places,Y,29/08/2023 13:00,JCARTRIDGE,7254,7965,N,,,,Y,29/08/2023 14:44,ABODEN,26/08/2023,2023,5,DBYRNE,26/08/2023 13:11,N,N
************5113,6,Mr Duncan J Byrne,U,Duncan Byrne,10373,C,10373,23/08/2023,2023,5,26/08/2023,2023,5,2023,5,117.97,0.00,117.97,C,0%,2023,5,,,Morrisons Supermarket,2x Tea - 12.50 6x Coffee - 47.94 4x Milk - 5.80 4x Dips - 9.56 3xCelery Sticks - 2.55 6x Cheese - 16.10 3x Sugar -3.57 2x Carrot Batons - 1.98 1x Gluten Free Cob - 3.49 2x Jacobs Crackers - 8.00 1x Apple Crumble Pies - 3.00 2x Grapes - 3.48,Other,3131,46842,,,People and Places,People and Places,Y,29/08/2023 13:00,JCARTRIDGE,7254,7965,N,,,,Y,29/08/2023 14:44,ABODEN,26/08/2023,2023,5,DBYRNE,26/08/2023 12:56,N,N
************5113,6,Mr Duncan J Byrne,U,Duncan Byrne,14492,B,14492,23/08/2023,0,,01/01/1900,0,,0,,162.47,,,,,0,,,,WM MORRISONS STORE,,,,,,,,,Y,29/08/2023 13:00,JCARTRIDGE,7254,285,N,,,,Y,29/08/2023 14:44,ABODEN,01/01/1900,0,,MBLACK,29/08/2023 11:47,,
************5113,6,Mr Duncan J Byrne,U,Duncan Byrne,10328,C,10328,11/08/2023,2023,5,11/08/2023,2023,5,2023,5,11.30,1.88,9.42,B,20%,2023,5,Y,403314604,Co-Op Supermarket,1x Dishwasher Rinse Aid - 3.65 1x Pack of 52 Dishwasher Tablets - 7.65 (above for WECP Riverside Room Dishwasher),Other,3130,42002,,,People and Places,People and Places,Y,29/08/2023 11:48,JCARTRIDGE,7223,7946,N,,,,Y,29/08/2023 14:44,ABODEN,11/08/2023,2023,5,DBYRNE,11/08/2023 11:57,N,N
************5113,6,Mr Duncan J Byrne,U,Duncan Byrne,14537,B,14537,11/08/2023,0,,01/01/1900,0,,0,,11.30,,,,,0,,,,CO-OP GROUP 070174,,,,,,,,,Y,29/08/2023 11:48,JCARTRIDGE,7223,285,N,,,,Y,29/08/2023 14:44,ABODEN,01/01/1900,0,,MBLACK,29/08/2023 11:47,,
************5113,6,Mr Duncan J Byrne,U,Duncan Byrne,10327,C,10327,11/08/2023,2023,5,11/08/2023,2023,5,2023,5,71.94,11.99,59.95,B,20%,2023,5,Y,322950373,Fast Fix Workshop Ltd,2x 5L Cans of Wood Preservative - 63.98 1x Double Plug Adapter - 2.99 1x 13amp Plug - 1.99 2x Pack of Tamper Proof Screws - 2.98 (above for WECP benches & Dishwasher),Other,3130,42002,,,People and Places,People and Places,Y,29/08/2023 11:48,JCARTRIDGE,7222,7945,N,,,,Y,29/08/2023 14:44,ABODEN,11/08/2023,2023,5,DBYRNE,11/08/2023 11:38,N,N
************5113,6,Mr Duncan J Byrne,U,Duncan Byrne,14536,B,14536,11/08/2023,0,,01/01/1900,0,,0,,71.94,,,,,0,,,,FAST-FIX WORKSHOP LTD,,,,,,,,,Y,29/08/2023 11:48,JCARTRIDGE,7222,285,N,,,,Y,29/08/2023 14:44,ABODEN,01/01/1900,0,,MBLACK,29/08/2023 11:47,,
************5113,6,Mr Duncan J Byrne,U,Duncan Byrne,10392,C,10392,01/08/2023,2023,5,30/08/2023,2023,5,2023,5,2.40,0.40,2.00,B,20%,2023,5,Y,390709185,Ticket Tailor,Ticket Fees for 3x sales on the Wyre`s Great Outdoors Programme of Walks & Activities - 2.40,Other,3131,46700,,,People and Places,People and Places,Y,30/08/2023 15:19,DBYRNE,7266,7980,N,,,,P,30/08/2023 15:19,ABODEN,,0,0,DBYRNE,30/08/2023 15:18,N,N
************5113,6,Mr Duncan J Byrne,U,Duncan Byrne,14510,B,14510,01/08/2023,0,,01/01/1900,0,,0,,2.40,,,,,0,,,,TICKET TAILOR,,,,,,,,,Y,30/08/2023 15:19,DBYRNE,7266,285,N,,,,P,30/08/2023 15:19,ABODEN,01/01/1900,0,,MBLACK,29/08/2023 11:47,,
************5113,6,Mr Duncan J Byrne,U,Duncan Byrne,10329,C,10329,01/08/2023,2023,5,11/08/2023,2023,5,2023,5,8.15,0.00,8.15,C,0%,2023,5,,,Paypal - Learnatrade Ltd,2x Tide Tables - 8.15 (above to assist with planning for Wyre`s Great Outdoors Programme),Other,3131,42302,,,People and Places,People and Places,Y,29/08/2023 11:48,JCARTRIDGE,7221,7947,N,,,,Y,29/08/2023 14:44,ABODEN,11/08/2023,2023,5,DBYRNE,11/08/2023 13:10,N,N
************5113,6,Mr Duncan J Byrne,U,Duncan Byrne,14509,B,14509,01/08/2023,0,,01/01/1900,0,,0,,8.15,,,,,0,,,,PAYPAL LEARNATRADE,,,,,,,,,Y,29/08/2023 11:48,JCARTRIDGE,7221,285,N,,,,Y,29/08/2023 14:44,ABODEN,01/01/1900,0,,MBLACK,29/08/2023 11:47,,
************5113,6,Mr Duncan J Byrne,U,Duncan Byrne,10306,C,10306,22/07/2023,2023,4,01/08/2023,2023,5,2023,5,516.43,86.07,430.36,B,20%,2023,5,Y,201292415,Gopak.co.uk,2x Folding Table - 262.92 2x Stacking Benches - 167.44 (above for Coast & Countryside Events),Other,3131,40100,,,People and Places,People and Places,Y,01/08/2023 11:06,DBYRNE,7209,7923,N,,,,Y,29/08/2023 14:44,ABODEN,01/08/2023,2023,5,DBYRNE,01/08/2023 11:05,N,N
************5113,6,Mr Duncan J Byrne,U,Duncan Byrne,14421,B,14421,22/07/2023,0,,01/01/1900,0,,0,,516.43,,,,,0,,,,WWW.GOPAK.CO.UK,,,,,,,,,Y,01/08/2023 11:06,DBYRNE,7209,284,N,,,,Y,29/08/2023 14:44,ABODEN,01/01/1900,0,,MBLACK,31/07/2023 09:53,,
************5113,6,Mr Duncan J Byrne,U,Duncan Byrne,10292,C,10292,19/07/2023,2023,4,19/07/2023,2023,4,2023,4,922.00,153.67,768.33,B,20%,2023,4,Y,945698169,AO.Com,1 x Dishwasher - 399.00 2 x Fridge - 478.00 (above for Riverside Room Building at WECP),Other,3130,40100,,,People and Places,People and Places,Y,31/07/2023 09:54,JCARTRIDGE,7185,7908,N,,,,Y,29/08/2023 14:44,ABODEN,19/07/2023,2023,4,DBYRNE,19/07/2023 13:13,N,N
************5113,6,Mr Duncan J Byrne,U,Duncan Byrne,14479,B,14479,19/07/2023,0,,01/01/1900,0,,0,,922.00,,,,,0,,,,AO RETAIL LIMITED,,,,,,,,,Y,31/07/2023 09:54,JCARTRIDGE,7185,284,N,,,,Y,29/08/2023 14:44,ABODEN,01/01/1900,0,,MBLACK,31/07/2023 09:53,,
************5139,8,Shelley Birch,U,Shelley Birch,10326,C,10326,06/07/2023,2023,4,11/08/2023,2023,5,2023,5,27.76,4.63,23.13,B,20%,2023,5,,,ASDA STORES LTD,Purchase fruit for CAP event 06.07.23,Other,3361,46600,,,People and Places,People and Places,Y,11/08/2023 10:22,SWHITTAKER,7211,7944,N,,,,Y,07/09/2023 16:10,CMASON,11/08/2023,2023,5,SWHITTAKER,11/08/2023 10:22,N,N
************5139,8,Shelley Birch,U,Shelley Birch,14452,B,14452,06/07/2023,0,,01/01/1900,0,,0,,27.76,,,,,0,,,,ASDA STOES LTD 5759,,,,,,,,,Y,11/08/2023 10:22,SWHITTAKER,7211,284,N,,,,Y,07/09/2023 16:10,CMASON,01/01/1900,0,,MBLACK,31/07/2023 09:53,,
************5139,8,Shelley Birch,U,Shelley Birch,10325,C,10325,06/07/2023,2023,4,11/08/2023,2023,5,2023,5,68.00,11.33,56.67,B,20%,2023,5,,,ASDA STORES LTD,Purchase fruit and cups for CAP event 06.07.23,Other,3361,46600,,,People and Places,People and Places,Y,11/08/2023 10:22,SWHITTAKER,7211,7944,N,,,,Y,07/09/2023 16:10,CMASON,11/08/2023,2023,5,SWHITTAKER,11/08/2023 10:21,N,N
************5139,8,Shelley Birch,U,Shelley Birch,14451,B,14451,06/07/2023,0,,01/01/1900,0,,0,,68.00,,,,,0,,,,ASDA STOES LTD 5759,,,,,,,,,Y,11/08/2023 10:22,SWHITTAKER,7211,284,N,,,,Y,07/09/2023 16:10,CMASON,01/01/1900,0,,MBLACK,31/07/2023 09:53,,
************8487,12,Miss C Greener,U,Catherine Greener,14483,B,14483,20/07/2023,0,,01/01/1900,0,,0,,226.00,,,,,0,,,,HMCTS PENNINE103,,,,,,,,,N,,,0,284,N,,,,N,,,01/01/1900,0,,MBLACK,31/07/2023 09:53,,
************4775,16,Gary Scott,S,Tracey Waistle,10455,C,10455,30/09/2023,2023,6,27/09/2023,2023,6,2023,6,167.50,0.00,167.50,D,0%,2023,6,,,DVLA,DVLA Vehicle Tax Application ref: 1240-4922-1555-7429,Other,6902,30502,V118,,People and Places,People and Places,Y,02/10/2023 10:33,HGRUNDY,7311,8042,N,,,,P,02/10/2023 10:33,CGREEN,,0,0,TWAISTLE,27/09/2023 13:38,N,N
************4775,16,Gary Scott,S,Tracey Waistle,10454,C,10454,30/09/2023,2023,6,27/09/2023,2023,6,2023,6,322.50,0.00,322.50,D,0%,2023,6,,,DVLA,DVLA Vehicle Tax Application ref: 1240-5527-6413-1809,Other,3131,30502,V89,,People and Places,People and Places,Y,02/10/2023 10:33,HGRUNDY,7311,8041,N,,,,P,02/10/2023 10:33,CGREEN,,0,0,TWAISTLE,27/09/2023 13:35,N,N
************4775,16,Gary Scott,S,Tracey Waistle,14622,B,14622,27/09/2023,0,,01/01/1900,0,,0,,220.00,,,,,0,,,,DAWSONS TRAVEL LIMITED,,,,,,,,,N,,,0,286,N,,,,N,,,01/01/1900,0,,MBLACK,29/09/2023 09:37,,
************4775,16,Gary Scott,S,Tracey Waistle,14619,B,14619,26/09/2023,0,,01/01/1900,0,,0,,167.50,,,,,0,,,,DVLA VEHICLE TAX,,,,,,,,,Y,02/10/2023 10:33,HGRUNDY,7311,286,N,,,,P,02/10/2023 10:33,CGREEN,01/01/1900,0,,MBLACK,29/09/2023 09:37,,
************4775,16,Gary Scott,S,Tracey Waistle,14620,B,14620,26/09/2023,0,,01/01/1900,0,,0,,322.50,,,,,0,,,,DVLA VEHICLE TAX,,,,,,,,,Y,02/10/2023 10:33,HGRUNDY,7311,286,N,,,,P,02/10/2023 10:33,CGREEN,01/01/1900,0,,MBLACK,29/09/2023 09:37,,
************4775,16,Gary Scott,S,Tracey Waistle,10453,C,10453,22/09/2023,2023,6,27/09/2023,2023,6,2023,6,250.58,41.76,208.82,B,20%,2023,6,Y,GB726910921,Chorley Nissan,Service Nissan Leaf Document no: 15210602,Other,4190,30507,V102,,People and Places,People and Places,A,29/09/2023 09:38,HGRUNDY,7293,8040,N,,,,P,,CGREEN,,0,0,TWAISTLE,27/09/2023 13:30,N,N
************4775,16,Gary Scott,S,Tracey Waistle,14608,B,14608,22/09/2023,0,,01/01/1900,0,,0,,250.58,,,,,0,,,,CHORLEY NISSAN,,,,,,,,,A,29/09/2023 09:38,HGRUNDY,7293,286,N,,,,P,,CGREEN,01/01/1900,0,,MBLACK,29/09/2023 09:37,,
************4775,16,Gary Scott,S,Tracey Waistle,10452,C,10452,21/09/2023,2023,6,27/09/2023,2023,6,2023,6,110.00,0.00,110.00,D,0%,2023,6,,,Mr Chip,Windscreen AY63 YNU Veolia,Other,6955,42002,,,People and Places,People and Places,A,29/09/2023 09:38,HGRUNDY,7294,8039,N,,,,P,,CGREEN,,0,0,TWAISTLE,27/09/2023 13:26,N,N
************4775,16,Gary Scott,S,Tracey Waistle,14605,B,14605,21/09/2023,0,,01/01/1900,0,,0,,110.00,,,,,0,,,,PAYPAL MRCHIPLIMIT,,,,,,,,,A,29/09/2023 09:38,HGRUNDY,7294,286,N,,,,P,,CGREEN,01/01/1900,0,,MBLACK,29/09/2023 09:37,,
************4775,16,Gary Scott,S,Tracey Waistle,10456,C,10456,21/09/2023,2023,6,27/09/2023,2023,6,2023,6,962.05,160.34,801.71,B,20%,2023,6,Y,359139373,NONSLIPSHOP,Anti-slip decking strips King Georges Playing Fields Invoice no: #6766,Other,3091,21002,,,People and Places,People and Places,N,,,0,8043,N,,,,N,,,,0,0,TWAISTLE,27/09/2023 13:43,N,N
************4775,16,Gary Scott,S,Tracey Waistle,14604,B,14604,21/09/2023,0,,01/01/1900,0,,0,,962.23,,,,,0,,,,PAYPAL NONSLIPSHOP,,,,,,,,,N,,,0,286,N,,,,N,,,01/01/1900,0,,MBLACK,29/09/2023 09:37,,
************4775,16,Gary Scott,S,Tracey Waistle,10437,C,10437,12/09/2023,2023,6,14/09/2023,2023,6,2023,6,9.00,1.50,7.50,B,20%,2023,6,Y,992488166,Auto Bitz Motor Factors,Number plate RK19OPE V117,Other,3420,30507,V117,,People and Places,People and Places,A,29/09/2023 09:38,HGRUNDY,7292,8025,N,,,,P,,CGREEN,,0,0,TWAISTLE,14/09/2023 15:47,N,N
************4775,16,Gary Scott,S,Tracey Waistle,14575,B,14575,12/09/2023,0,,01/01/1900,0,,0,,9.00,,,,,0,,,,AUTOBITZ MOTOR FACTORS,,,,,,,,,A,29/09/2023 09:38,HGRUNDY,7292,286,N,,,,P,,CGREEN,01/01/1900,0,,MBLACK,29/09/2023 09:37,,
************4775,16,Gary Scott,S,Tracey Waistle,10438,C,10438,11/09/2023,2023,6,14/09/2023,2023,6,2023,6,32.76,5.46,27.30,B,20%,2023,6,Y,992488166,Auto Bitz Motor Factors Ltd,Plugs Advice note no: 173558,Other,6953,30507,T991,,People and Places,People and Places,A,29/09/2023 09:38,HGRUNDY,7291,8026,N,,,,P,,CGREEN,,0,0,TWAISTLE,14/09/2023 15:51,N,N
************4775,16,Gary Scott,S,Tracey Waistle,14573,B,14573,11/09/2023,0,,01/01/1900,0,,0,,32.76,,,,,0,,,,AUTOBITZ MOTOR FACTORS,,,,,,,,,A,29/09/2023 09:38,HGRUNDY,7291,286,N,,,,P,,CGREEN,01/01/1900,0,,MBLACK,29/09/2023 09:37,,
************4775,16,Gary Scott,S,Tracey Waistle,10344,C,10344,17/08/2023,2023,5,22/08/2023,2023,5,2023,5,167.50,0.00,167.50,D,0%,2023,5,,,DVLA,T002 tax,Other,6106,30502,T002,,People and Places,People and Places,A,29/08/2023 11:48,JCARTRIDGE,7226,7956,N,,,,P,,CGREEN,,0,0,CCLOHERTYJONES,22/08/2023 15:14,N,N
************4775,16,Gary Scott,S,Tracey Waistle,14555,B,14555,17/08/2023,0,,01/01/1900,0,,0,,167.50,,,,,0,,,,DVLA VEHICLE TAX,,,,,,,,,A,29/08/2023 11:48,JCARTRIDGE,7226,285,N,,,,P,,CGREEN,01/01/1900,0,,MBLACK,29/08/2023 11:47,,
************4775,16,Gary Scott,S,Tracey Waistle,10343,C,10343,17/08/2023,2023,5,22/08/2023,2023,5,2023,5,322.50,0.00,322.50,D,0%,2023,5,,,DVLA,v131 tax,Other,3420,30502,v131,,People and Places,People and Places,A,29/08/2023 11:48,JCARTRIDGE,7225,7956,N,,,,P,,CGREEN,,0,0,CCLOHERTYJONES,22/08/2023 15:12,N,N
************4775,16,Gary Scott,S,Tracey Waistle,10345,C,10345,17/08/2023,2023,5,22/08/2023,2023,5,2023,5,322.50,0.00,322.50,D,0%,2023,5,,,DVLA,V83 tax,Other,6953,30502,v83,,People and Places,People and Places,A,29/08/2023 11:48,JCARTRIDGE,7227,7956,N,,,,P,,CGREEN,,0,0,CCLOHERTYJONES,22/08/2023 15:15,N,N
************4775,16,Gary Scott,S,Tracey Waistle,10346,C,10346,17/08/2023,2023,5,22/08/2023,2023,5,2023,5,322.50,0.00,322.50,D,0%,2023,5,,,DVLA,V130 tax,Other,3420,30502,v130,,People and Places,People and Places,A,29/08/2023 11:48,JCARTRIDGE,7228,7956,N,,,,P,,CGREEN,,0,0,CCLOHERTYJONES,22/08/2023 15:16,N,N
************4775,16,Gary Scott,S,Tracey Waistle,10347,C,10347,17/08/2023,2023,5,22/08/2023,2023,5,2023,5,322.50,0.00,322.50,D,0%,2023,5,,,DVLA,V129 tax,Other,3420,30502,v129,,People and Places,People and Places,A,29/08/2023 11:48,JCARTRIDGE,7229,7956,N,,,,P,,CGREEN,,0,0,CCLOHERTYJONES,22/08/2023 15:18,N,N
************4775,16,Gary Scott,S,Tracey Waistle,14554,B,14554,17/08/2023,0,,01/01/1900,0,,0,,322.50,,,,,0,,,,DVLA VEHICLE TAX,,,,,,,,,A,29/08/2023 11:48,JCARTRIDGE,7225,285,N,,,,P,,CGREEN,01/01/1900,0,,MBLACK,29/08/2023 11:47,,
************4775,16,Gary Scott,S,Tracey Waistle,14556,B,14556,17/08/2023,0,,01/01/1900,0,,0,,322.50,,,,,0,,,,DVLA VEHICLE TAX,,,,,,,,,A,29/08/2023 11:48,JCARTRIDGE,7227,285,N,,,,P,,CGREEN,01/01/1900,0,,MBLACK,29/08/2023 11:47,,
************4775,16,Gary Scott,S,Tracey Waistle,14557,B,14557,17/08/2023,0,,01/01/1900,0,,0,,322.50,,,,,0,,,,DVLA VEHICLE TAX,,,,,,,,,A,29/08/2023 11:48,JCARTRIDGE,7228,285,N,,,,P,,CGREEN,01/01/1900,0,,MBLACK,29/08/2023 11:47,,
************4775,16,Gary Scott,S,Tracey Waistle,14558,B,14558,17/08/2023,0,,01/01/1900,0,,0,,322.50,,,,,0,,,,DVLA VEHICLE TAX,,,,,,,,,A,29/08/2023 11:48,JCARTRIDGE,7229,285,N,,,,P,,CGREEN,01/01/1900,0,,MBLACK,29/08/2023 11:47,,
************4775,16,Gary Scott,S,Tracey Waistle,14551,B,14551,16/08/2023,0,,01/01/1900,0,,0,,20.28,,,,,0,,,,MARTIN BROWN PAINTS,,,,,,,,,Y,29/08/2023 12:59,JCARTRIDGE,7253,285,N,,,,P,29/08/2023 12:59,CGREEN,01/01/1900,0,,MBLACK,29/08/2023 11:47,,
************4775,16,Gary Scott,S,Tracey Waistle,10349,C,10349,11/08/2023,2023,5,22/08/2023,2023,5,2023,5,160.00,0.00,160.00,D,0%,2023,5,,,Mr Chip,Windowscreen repAIR,Other,3420,30507,V71,,People and Places,People and Places,A,29/08/2023 11:48,JCARTRIDGE,7224,7956,N,,,,P,,CGREEN,,0,0,CCLOHERTYJONES,22/08/2023 15:24,N,N
************4775,16,Gary Scott,S,Tracey Waistle,14539,B,14539,11/08/2023,0,,01/01/1900,0,,0,,160.00,,,,,0,,,,PAYPAL MRCHIPLIMIT,,,,,,,,,A,29/08/2023 11:48,JCARTRIDGE,7224,285,N,,,,P,,CGREEN,01/01/1900,0,,MBLACK,29/08/2023 11:47,,
************4775,16,Gary Scott,S,Tracey Waistle,10350,C,10350,11/08/2023,2023,5,22/08/2023,2023,5,2023,5,389.52,64.92,324.60,B,20%,2023,5,Y,296391123,mhs ltd,1 X fn8005,Other,3420,30507,V87,,People and Places,People and Places,Y,29/08/2023 12:59,JCARTRIDGE,7253,7956,N,,,,P,29/08/2023 12:59,CGREEN,,0,0,CCLOHERTYJONES,22/08/2023 15:26,N,N
************4775,16,Gary Scott,S,Tracey Waistle,14538,B,14538,10/08/2023,0,,01/01/1900,0,,0,,389.52,,,,,0,,,,MODULARHYDR,,,,,,,,,Y,29/08/2023 12:59,JCARTRIDGE,7253,285,N,,,,P,29/08/2023 12:59,CGREEN,01/01/1900,0,,MBLACK,29/08/2023 11:47,,
************4775,16,Gary Scott,S,Tracey Waistle,10342,C,10342,08/08/2023,2023,5,22/08/2023,2023,5,2023,5,20.28,3.38,16.90,B,20%,2023,5,Y,153440783,MBP,1 x SMC2,Other,5221,30507,v94,,People and Places,People and Places,Y,29/08/2023 12:59,JCARTRIDGE,7253,7956,N,,,,P,29/08/2023 12:59,CGREEN,,0,0,CCLOHERTYJONES,22/08/2023 15:11,N,N
************4775,16,Gary Scott,S,Tracey Waistle,10348,C,10348,02/08/2023,2023,5,22/08/2023,2023,5,2023,5,"2,694.00",449.00,"2,245.00",B,20%,2023,5,Y,895558261,fence uk,fence items,Other,3260,42002,,,People and Places,People and Places,A,29/08/2023 11:48,JCARTRIDGE,7230,7956,N,,,,P,,CGREEN,,0,0,CCLOHERTYJONES,22/08/2023 15:20,N,N
************4775,16,Gary Scott,S,Tracey Waistle,14518,B,14518,02/08/2023,0,,01/01/1900,0,,0,,"2,694.00",,,,,0,,,,FENCE UK,,,,,,,,,A,29/08/2023 11:48,JCARTRIDGE,7230,285,N,,,,P,,CGREEN,01/01/1900,0,,MBLACK,29/08/2023 11:47,,
************4775,16,Gary Scott,S,Tracey Waistle,10312,C,10312,28/07/2023,2023,4,01/08/2023,2023,5,2023,5,12.95,2.16,10.79,B,20%,2023,5,Y,,autobitz,1 cv88 BOOT v72,Other,3131,30507,V72,,People and Places,People and Places,A,29/08/2023 11:48,JCARTRIDGE,7231,7930,N,,,,P,,CGREEN,,0,0,CCLOHERTYJONES,01/08/2023 15:58,N,N
************4775,16,Gary Scott,S,Tracey Waistle,14484,B,14484,28/07/2023,0,,01/01/1900,0,,0,,12.95,,,,,0,,,,AUTOBITZ MOTOR FACTORS,,,,,,,,,A,29/08/2023 11:48,JCARTRIDGE,7231,285,N,,,,P,,CGREEN,01/01/1900,0,,MBLACK,29/08/2023 11:47,,
************4775,16,Gary Scott,S,Tracey Waistle,10307,C,10307,26/07/2023,2023,4,01/08/2023,2023,5,2023,5,322.50,0.00,322.50,D,0%,2023,5,,,DVLA,vehicle tax v71 PF13 PDV,Other,3420,30502,v71,,People and Places,People and Places,Y,14/08/2023 08:55,JCARTRIDGE,7213,7924,N,,,,Y,14/08/2023 12:18,CGREEN,01/08/2023,2023,5,CCLOHERTYJONES,01/08/2023 15:37,N,N
************4775,16,Gary Scott,S,Tracey Waistle,10308,C,10308,26/07/2023,2023,4,01/08/2023,2023,5,2023,5,322.50,0.00,322.50,D,0%,2023,5,,,DVLA,Vehicle tax V103 CY17 0RS,Other,3420,30502,v103,,People and Places,People and Places,Y,14/08/2023 08:55,JCARTRIDGE,7213,7925,N,,,,Y,14/08/2023 12:18,CGREEN,01/08/2023,2023,5,CCLOHERTYJONES,01/08/2023 15:39,N,N
************4775,16,Gary Scott,S,Tracey Waistle,10309,C,10309,26/07/2023,2023,4,01/08/2023,2023,5,2023,5,322.50,0.00,322.50,D,0%,2023,5,,,DVLA,Vehicle tax v108 CY18 MXT,Other,3320,30502,V108,,People and Places,People and Places,Y,14/08/2023 08:55,JCARTRIDGE,7213,7926,N,,,,Y,14/08/2023 12:18,CGREEN,01/08/2023,2023,5,CCLOHERTYJONES,01/08/2023 15:41,N,N
************4775,16,Gary Scott,S,Tracey Waistle,10310,C,10310,26/07/2023,2023,4,01/08/2023,2023,5,2023,5,322.50,0.00,322.50,D,0%,2023,5,,,DVLA,Vehicle tax V 72 PF13 JV0,Other,3420,30502,v103,,People and Places,People and Places,Y,14/08/2023 08:55,JCARTRIDGE,7213,7927,N,,,,Y,14/08/2023 12:18,CGREEN,01/08/2023,2023,5,CCLOHERTYJONES,01/08/2023 15:47,N,N
************4775,16,Gary Scott,S,Tracey Waistle,14431,B,14431,26/07/2023,0,,01/01/1900,0,,0,,322.50,,,,,0,,,,DVLA VEHICLE TAX,,,,,,,,,Y,14/08/2023 08:55,JCARTRIDGE,7213,284,N,,,,Y,14/08/2023 12:18,CGREEN,01/01/1900,0,,MBLACK,31/07/2023 09:53,,
************4775,16,Gary Scott,S,Tracey Waistle,14427,B,14427,25/07/2023,0,,01/01/1900,0,,0,,322.50,,,,,0,,,,DVLA VEHICLE TAX,,,,,,,,,Y,14/08/2023 08:55,JCARTRIDGE,7213,284,N,,,,Y,14/08/2023 12:18,CGREEN,01/01/1900,0,,MBLACK,31/07/2023 09:53,,
************4775,16,Gary Scott,S,Tracey Waistle,14428,B,14428,25/07/2023,0,,01/01/1900,0,,0,,322.50,,,,,0,,,,DVLA VEHICLE TAX,,,,,,,,,Y,14/08/2023 08:55,JCARTRIDGE,7213,284,N,,,,Y,14/08/2023 12:18,CGREEN,01/01/1900,0,,MBLACK,31/07/2023 09:53,,
************4775,16,Gary Scott,S,Tracey Waistle,14430,B,14430,25/07/2023,0,,01/01/1900,0,,0,,322.50,,,,,0,,,,DVLA VEHICLE TAX,,,,,,,,,Y,14/08/2023 08:55,JCARTRIDGE,7213,284,N,,,,Y,14/08/2023 12:18,CGREEN,01/01/1900,0,,MBLACK,31/07/2023 09:53,,
************4775,16,Gary Scott,S,Tracey Waistle,10311,C,10311,21/07/2023,2023,4,01/08/2023,2023,5,2023,5,346.32,57.72,288.60,B,20%,2023,5,Y,182924781,W. Hargreaves Electricals,fuel pump motor,Other,3711,40102,,,People and Places,People and Places,Y,14/08/2023 08:55,JCARTRIDGE,7213,7929,N,,,,Y,14/08/2023 12:18,CGREEN,01/08/2023,2023,5,CCLOHERTYJONES,01/08/2023 15:55,N,N
************4775,16,Gary Scott,S,Tracey Waistle,14422,B,14422,21/07/2023,0,,01/01/1900,0,,0,,346.32,,,,,0,,,,W HARGREAVES ELECTRICA,,,,,,,,,Y,14/08/2023 08:55,JCARTRIDGE,7213,284,N,,,,Y,14/08/2023 12:18,CGREEN,01/01/1900,0,,MBLACK,31/07/2023 09:53,,
************4775,16,Gary Scott,S,Tracey Waistle,10296,C,10296,20/07/2023,2023,4,25/07/2023,2023,4,2023,4,194.75,32.46,162.29,B,20%,2023,4,,,HARVIE TYRES,Various Items -sealer/ mounting paste/ combi repair stem/rubber cleaner aerosol/,Other,6955,42002,,,People and Places,People and Places,Y,31/07/2023 09:54,JCARTRIDGE,7186,7912,N,,,,Y,02/08/2023 12:35,CGREEN,25/07/2023,2023,4,CCLOHERTYJONES,25/07/2023 11:59,N,N
************4775,16,Gary Scott,S,Tracey Waistle,14482,B,14482,20/07/2023,0,,01/01/1900,0,,0,,194.75,,,,,0,,,,HARVIE TYRES LIMITED,,,,,,,,,Y,31/07/2023 09:54,JCARTRIDGE,7186,284,N,,,,Y,02/08/2023 12:35,CGREEN,01/01/1900,0,,MBLACK,31/07/2023 09:53,,
************4775,16,Gary Scott,S,Tracey Waistle,10294,C,10294,18/07/2023,2023,4,25/07/2023,2023,4,2023,4,100.03,16.67,83.36,B,20%,2023,4,Y,GB296391123,modular hydrolic Systems Ltd,1 x motor starter KS5-EF1070 delivery,Other,3420,30507,V87,,People and Places,People and Places,Y,31/07/2023 15:12,JCARTRIDGE,7208,7910,N,,,,Y,02/08/2023 12:35,CGREEN,25/07/2023,2023,4,CCLOHERTYJONES,25/07/2023 11:26,N,N
************4775,16,Gary Scott,S,Tracey Waistle,14480,B,14480,17/07/2023,0,,01/01/1900,0,,0,,100.03,,,,,0,,,,MODULARHYDR,,,,,,,,,Y,31/07/2023 15:12,JCARTRIDGE,7208,284,N,,,,Y,02/08/2023 12:35,CGREEN,01/01/1900,0,,MBLACK,31/07/2023 09:53,,
************4775,16,Gary Scott,S,Tracey Waistle,10295,C,10295,17/07/2023,2023,4,25/07/2023,2023,4,2023,4,410.00,0.00,410.00,D,0%,2023,4,,,dvsa,MOT Slots,Other,3712,30502,,,People and Places,People and Places,Y,31/07/2023 09:54,JCARTRIDGE,7187,7911,N,,,,Y,02/08/2023 12:35,CGREEN,25/07/2023,2023,4,CCLOHERTYJONES,25/07/2023 11:53,N,N
************4775,16,Gary Scott,S,Tracey Waistle,14474,B,14474,17/07/2023,0,,01/01/1900,0,,0,,410.00,,,,,0,,,,DVSA,,,,,,,,,Y,31/07/2023 09:54,JCARTRIDGE,7187,284,N,,,,Y,02/08/2023 12:35,CGREEN,01/01/1900,0,,MBLACK,31/07/2023 09:53,,
************4775,16,Gary Scott,S,Tracey Waistle,14453,B,14453,06/07/2023,0,,01/01/1900,0,,0,,15.00,,,,,0,,,,PAYPAL MALPASONLIN,,,,,,,,,Y,31/07/2023 15:12,JCARTRIDGE,7208,284,N,,,,Y,02/08/2023 12:35,CGREEN,01/01/1900,0,,MBLACK,31/07/2023 09:53,,
************4775,16,Gary Scott,S,Tracey Waistle,10265,C,10265,05/07/2023,2023,4,13/07/2023,2023,4,2023,4,15.00,2.50,12.50,B,20%,2023,4,Y,GB771341049,Malpas Tractors (Wrexham) Ltd,Carriage Invoice no: MO9000-1225,Other,6953,30507,V121,,People and Places,People and Places,Y,31/07/2023 15:12,JCARTRIDGE,7208,7891,N,,,,Y,02/08/2023 12:35,CGREEN,13/07/2023,2023,4,TWAISTLE,13/07/2023 14:41,N,N
************4775,16,Gary Scott,S,Tracey Waistle,14447,B,14447,05/07/2023,0,,01/01/1900,0,,0,,172.80,,,,,0,,,,MALPASTRACTORS.CO.,,,,,,,,,Y,31/07/2023 15:12,JCARTRIDGE,7208,284,N,,,,Y,02/08/2023 12:35,CGREEN,01/01/1900,0,,MBLACK,31/07/2023 09:53,,
************4775,16,Gary Scott,S,Tracey Waistle,10266,C,10266,04/07/2023,2023,4,13/07/2023,2023,4,2023,4,172.80,28.80,144.00,B,20%,2023,4,,,Malpas Online,Tractor linkage A Frame quick Hitch System Order confirmation 5/7/23,Other,6953,30507,V121,,People and Places,People and Places,Y,31/07/2023 15:12,JCARTRIDGE,7208,7893,N,,,,Y,02/08/2023 12:35,CGREEN,13/07/2023,2023,4,TWAISTLE,13/07/2023 14:45,N,N
************0987,21,Mr David Twiss,S,Tracey Waistle,10431,C,10431,24/07/2023,2023,4,14/09/2023,2023,6,2023,6,110.00,0.00,110.00,D,0%,2023,5,,,The Village Practice,HGV Medical Dave Twiss,Other,6902,44000,,,People and Places,People and Places,Y,14/09/2023 15:04,TWAISTLE,7278,8019,N,,,,Y,14/09/2023 15:40,GSCOTT,14/09/2023,2023,6,TWAISTLE,14/09/2023 12:31,N,N
************0987,21,Mr David Twiss,S,Tracey Waistle,14425,B,14425,24/07/2023,0,,01/01/1900,0,,0,,110.00,,,,,0,,,,SUMUP THE VILLAGE PR,,,,,,,,,Y,14/09/2023 15:04,TWAISTLE,7278,284,N,,,,Y,14/09/2023 15:40,GSCOTT,01/01/1900,0,,MBLACK,31/07/2023 09:53,,
************9017,27,Mark Thomason,S,Tracey Waistle,10313,C,10313,24/07/2023,2023,4,01/08/2023,2023,5,2023,5,30.00,0.00,30.00,D,0%,2023,5,,,Wyre Locks,1 Repair to Lock at Chatsworth Sliding door,Other,3260,42002,,,People and Places,People and Places,Y,14/08/2023 08:56,JCARTRIDGE,7214,7931,N,,,,Y,14/08/2023 10:27,GSCOTT,01/08/2023,2023,5,CCLOHERTYJONES,01/08/2023 16:15,N,N
************9017,27,Mark Thomason,S,Tracey Waistle,14426,B,14426,24/07/2023,0,,01/01/1900,0,,0,,30.00,,,,,0,,,,WYRE LOCKS,,,,,,,,,Y,14/08/2023 08:56,JCARTRIDGE,7214,284,N,,,,Y,14/08/2023 10:27,GSCOTT,01/01/1900,0,,MBLACK,31/07/2023 09:53,,
************9017,27,Mark Thomason,S,Tracey Waistle,10297,C,10297,18/07/2023,2023,4,25/07/2023,2023,4,2023,4,57.21,9.53,47.68,B,20%,2023,4,Y,232555575,screwfix,foam gun expanding foam and cleaner,Other,6902,40100,,,People and Places,People and Places,Y,31/07/2023 09:54,JCARTRIDGE,7188,7913,N,,,,Y,31/07/2023 15:33,GSCOTT,25/07/2023,2023,4,CCLOHERTYJONES,25/07/2023 12:02,N,N
************9017,27,Mark Thomason,S,Tracey Waistle,14477,B,14477,18/07/2023,0,,01/01/1900,0,,0,,57.21,,,,,0,,,,SCREWFIX DIR LTD,,,,,,,,,Y,31/07/2023 09:54,JCARTRIDGE,7188,284,N,,,,Y,31/07/2023 15:33,GSCOTT,01/01/1900,0,,MBLACK,31/07/2023 09:53,,
************1859,31,Mr J Pearson,U,Jonny Pearson,10463,C,10463,14/09/2023,2023,6,29/09/2023,2023,6,2023,6,328.67,57.66,271.01,B,20%,2023,6,,,AMZNMKTPLACE AMAZON.CO,x20 Twozoh 4K USB C Cable 100W 2M 2 Pack,Other,6404,43500,HW007,,Resources,Resources,Y,29/09/2023 11:49,JPEARSON,7310,8050,N,,,,Y,29/09/2023 11:51,LBROPHY,29/09/2023,2023,6,JPEARSON,29/09/2023 11:49,N,N
************1859,31,Mr J Pearson,U,Jonny Pearson,14581,B,14581,14/09/2023,0,,01/01/1900,0,,0,,328.67,,,,,0,,,,AMZNMKTPLACE AMAZON.CO,,,,,,,,,Y,29/09/2023 11:49,JPEARSON,7310,286,N,,,,Y,29/09/2023 11:51,LBROPHY,01/01/1900,0,,MBLACK,29/09/2023 09:37,,
************1859,31,Mr J Pearson,U,Jonny Pearson,10465,C,10465,13/09/2023,2023,6,02/10/2023,2023,7,2023,7,128.09,0.00,128.09,I,0%,2023,7,,,UPS Ltd,UPS Import Charges for Flexoptix order,Other,6404,43500,HW016,,Resources,Resources,Y,02/10/2023 11:11,JPEARSON,7314,8051,N,,,,Y,02/10/2023 11:13,LBROPHY,02/10/2023,2023,7,JPEARSON,02/10/2023 11:10,N,N
************1859,31,Mr J Pearson,U,Jonny Pearson,14579,B,14579,13/09/2023,0,,01/01/1900,0,,0,,128.09,,,,,0,,,,UPS LTD,,,,,,,,,Y,02/10/2023 11:11,JPEARSON,7314,286,N,,,,Y,02/10/2023 11:13,LBROPHY,01/01/1900,0,,MBLACK,29/09/2023 09:37,,
************1859,31,Mr J Pearson,U,Jonny Pearson,14576,B,14576,12/09/2023,0,,01/01/1900,0,,0,,-2.00,,,,,0,,,,WWW.FLEXOPTIX.NET,,,,,,,,,Y,02/10/2023 11:11,JPEARSON,7313,286,N,,,,Y,02/10/2023 11:13,LBROPHY,01/01/1900,0,,MBLACK,29/09/2023 09:37,,
************1859,31,Mr J Pearson,U,Jonny Pearson,10464,C,10464,11/09/2023,2023,6,02/10/2023,2023,7,2023,7,582.80,0.00,582.80,I,0%,2023,7,,,WWW.FLEXOPTIX.NET,"x10 Universal 10G SFP SR, 300m, ?850 nm, LC-Duplex, Multimode, 600Mbit/s - 10.31Gbit/s SACSHIPCHG 13,60 GBP Shipping Charge",Other,6404,43500,HW016,,Resources,Resources,Y,02/10/2023 11:11,JPEARSON,7313,8051,N,,,,Y,02/10/2023 11:13,LBROPHY,02/10/2023,2023,7,JPEARSON,02/10/2023 11:04,N,N
************1859,31,Mr J Pearson,U,Jonny Pearson,14574,B,14574,11/09/2023,0,,01/01/1900,0,,0,,584.80,,,,,0,,,,WWW.FLEXOPTIX.NET,,,,,,,,,Y,02/10/2023 11:11,JPEARSON,7313,286,N,,,,Y,02/10/2023 11:13,LBROPHY,01/01/1900,0,,MBLACK,29/09/2023 09:37,,
************2135,32,Miss O F Cordingley,U,Olivia Cordingley,14588,B,14588,01/09/2023,0,,01/01/1900,0,,0,,204.00,,,,,0,,,,INDEED JOBS,,,,,,,,,N,,,0,286,N,,,,N,,,01/01/1900,0,,MBLACK,29/09/2023 09:37,,
************2135,32,Miss O F Cordingley,U,Olivia Cordingley,10397,C,10397,31/08/2023,2023,5,31/08/2023,2023,5,2023,5,150.99,0.00,150.99,R,0%,2023,5,,,One4All,One4All Voucher - 50 Years Service CH - 150 99p postage,Other,6953,16201,,,Resources,Resources,A,29/09/2023 09:38,HGRUNDY,7295,7985,N,,,,P,,JBILLINGTON,,0,0,OCORDINGLEY,31/08/2023 12:13,N,N
************2135,32,Miss O F Cordingley,U,Olivia Cordingley,14569,B,14569,31/08/2023,0,,01/01/1900,0,,0,,150.99,,,,,0,,,,ONE4ALL,,,,,,,,,A,29/09/2023 09:38,HGRUNDY,7295,286,N,,,,P,,JBILLINGTON,01/01/1900,0,,MBLACK,29/09/2023 09:37,,
************2135,32,Miss O F Cordingley,U,Olivia Cordingley,14566,B,14566,30/08/2023,0,,01/01/1900,0,,0,,363.23,,,,,0,,,,LINKEDIN JOB 936404247,,,,,,,,,N,,,0,286,N,,,,N,,,01/01/1900,0,,MBLACK,29/09/2023 09:37,,
************2135,32,Miss O F Cordingley,U,Olivia Cordingley,14562,B,14562,29/08/2023,0,,01/01/1900,0,,0,,120.82,,,,,0,,,,LINKEDIN RECRUITER 936,,,,,,,,,N,,,0,286,N,,,,N,,,01/01/1900,0,,MBLACK,29/09/2023 09:37,,
************2135,32,Miss O F Cordingley,U,Olivia Cordingley,14561,B,14561,28/08/2023,0,,01/01/1900,0,,0,,150.00,,,,,0,,,,AMAZON.CO.UK 1M3S34HI4,,,,,,,,,Y,02/10/2023 11:08,HGRUNDY,7312,286,N,,,,P,02/10/2023 11:09,JBILLINGTON,01/01/1900,0,,MBLACK,29/09/2023 09:37,,
************2135,32,Miss O F Cordingley,U,Olivia Cordingley,10363,C,10363,25/08/2023,2023,5,25/08/2023,2023,5,2023,5,150.00,0.00,150.00,R,0%,2023,5,,,Amazon,Amazon Gift Voucher - Long Service Award ML 150,Other,6902,16201,,,Resources,Resources,Y,02/10/2023 11:08,HGRUNDY,7312,7960,N,,,,P,02/10/2023 11:09,JBILLINGTON,,0,0,OCORDINGLEY,25/08/2023 11:09,N,N
************2135,32,Miss O F Cordingley,U,Olivia Cordingley,10314,C,10314,02/08/2023,2023,5,02/08/2023,2023,5,2023,5,150.99,0.00,150.99,D,0%,2023,5,,,One4All,One4All Gift Voucher - Kath Pye Long Service X2 75 plus 99p delivery,Other,6902,16201,,,Resources,Resources,Y,29/08/2023 11:48,JCARTRIDGE,7232,7932,N,,,,Y,04/09/2023 15:20,JBILLINGTON,02/08/2023,2023,5,OCORDINGLEY,02/08/2023 12:35,N,N
************2135,32,Miss O F Cordingley,U,Olivia Cordingley,14519,B,14519,02/08/2023,0,,01/01/1900,0,,0,,150.99,,,,,0,,,,ONE4ALL,,,,,,,,,Y,29/08/2023 11:48,JCARTRIDGE,7232,285,N,,,,Y,04/09/2023 15:20,JBILLINGTON,01/01/1900,0,,MBLACK,29/08/2023 11:47,,
************2135,32,Miss O F Cordingley,U,Olivia Cordingley,10383,C,10383,01/08/2023,2023,5,29/08/2023,2023,5,2023,5,103.24,0.00,103.24,R,0%,2023,5,,,Linkedin,Finance vacancies advertising on Linkedin 103.24,Other,6402,15200,,,Resources,Resources,Y,29/08/2023 17:25,OCORDINGLEY,7260,7972,N,,,,Y,04/09/2023 15:20,JBILLINGTON,29/08/2023,2023,5,OCORDINGLEY,29/08/2023 17:22,N,N
************2135,32,Miss O F Cordingley,U,Olivia Cordingley,10382,C,10382,01/08/2023,2023,5,29/08/2023,2023,5,2023,5,190.48,0.00,190.48,R,0%,2023,5,,,Linkedin,Principal BCO Recruitment Advertising on Linkedin 190.48,Other,6302,15200,,,Resources,Resources,Y,29/08/2023 17:25,OCORDINGLEY,7260,7972,N,,,,Y,04/09/2023 15:20,JBILLINGTON,29/08/2023,2023,5,OCORDINGLEY,29/08/2023 17:22,N,N
************2135,32,Miss O F Cordingley,U,Olivia Cordingley,14512,B,14512,01/08/2023,0,,01/01/1900,0,,0,,258.20,,,,,0,,,,INDEED JOBS,,,,,,,,,Y,29/08/2023 17:24,OCORDINGLEY,7259,285,N,,,,Y,04/09/2023 15:20,JBILLINGTON,01/01/1900,0,,MBLACK,29/08/2023 11:47,,
************2135,32,Miss O F Cordingley,U,Olivia Cordingley,14511,B,14511,01/08/2023,0,,01/01/1900,0,,0,,293.72,,,,,0,,,,LINKEDIN JOB 928408151,,,,,,,,,Y,29/08/2023 17:25,OCORDINGLEY,7260,285,N,,,,Y,04/09/2023 15:20,JBILLINGTON,01/01/1900,0,,MBLACK,29/08/2023 11:47,,
************2135,32,Miss O F Cordingley,U,Olivia Cordingley,10381,C,10381,31/07/2023,2023,4,29/08/2023,2023,5,2023,5,93.91,0.00,93.91,R,0%,2023,5,,,Indeed,Recruitment advertising on Indeed 93.91,Other,3720,15200,,,Resources,Resources,Y,29/08/2023 17:24,OCORDINGLEY,7259,7971,N,,,,Y,04/09/2023 15:20,JBILLINGTON,29/08/2023,2023,5,OCORDINGLEY,29/08/2023 17:20,N,N
************2135,32,Miss O F Cordingley,U,Olivia Cordingley,10384,C,10384,31/07/2023,2023,4,29/08/2023,2023,5,2023,5,120.82,0.00,120.82,R,0%,2023,5,,,Linkedin,Recruiter Lite Subscription,Other,6401,15200,,,Resources,Resources,Y,29/08/2023 17:24,OCORDINGLEY,7258,7973,N,,,,Y,04/09/2023 15:20,JBILLINGTON,29/08/2023,2023,5,OCORDINGLEY,29/08/2023 17:24,N,N
************2135,32,Miss O F Cordingley,U,Olivia Cordingley,14505,B,14505,31/07/2023,0,,01/01/1900,0,,0,,120.82,,,,,0,,,,LINKEDIN RECRUITER 928,,,,,,,,,Y,29/08/2023 17:24,OCORDINGLEY,7258,285,N,,,,Y,04/09/2023 15:20,JBILLINGTON,01/01/1900,0,,MBLACK,29/08/2023 11:47,,
************2135,32,Miss O F Cordingley,U,Olivia Cordingley,10380,C,10380,31/07/2023,2023,4,29/08/2023,2023,5,2023,5,164.29,0.00,164.29,R,0%,2023,5,,,Indeed,Recruitment advertising on Indeed 164.29,Other,6501,15200,,,Resources,Resources,Y,29/08/2023 17:24,OCORDINGLEY,7259,7971,N,,,,Y,04/09/2023 15:20,JBILLINGTON,29/08/2023,2023,5,OCORDINGLEY,29/08/2023 17:20,N,N
************2135,32,Miss O F Cordingley,U,Olivia Cordingley,10365,C,10365,02/07/2023,2023,4,25/08/2023,2023,5,2023,5,142.82,0.00,142.82,R,0%,2023,5,,,Linkedin,Recruitment advertising on Linkedin 142.82,Other,6302,15200,,,Resources,Resources,Y,25/08/2023 11:28,OCORDINGLEY,7216,7961,N,,,,Y,04/09/2023 15:20,JBILLINGTON,25/08/2023,2023,5,OCORDINGLEY,25/08/2023 11:27,N,N
************2135,32,Miss O F Cordingley,U,Olivia Cordingley,10364,C,10364,02/07/2023,2023,4,25/08/2023,2023,5,2023,5,304.11,0.00,304.11,R,0%,2023,5,,,Linkedin,Recruitment advertising on Linkedin 304.11,Other,6402,15200,,,Resources,Resources,Y,25/08/2023 11:28,OCORDINGLEY,7216,7961,N,,,,Y,04/09/2023 15:20,JBILLINGTON,25/08/2023,2023,5,OCORDINGLEY,25/08/2023 11:26,N,N
************2135,32,Miss O F Cordingley,U,Olivia Cordingley,14436,B,14436,02/07/2023,0,,01/01/1900,0,,0,,446.93,,,,,0,,,,LINKEDIN JOB 197683394,,,,,,,,,Y,25/08/2023 11:28,OCORDINGLEY,7216,284,N,,,,Y,04/09/2023 15:20,JBILLINGTON,01/01/1900,0,,MBLACK,31/07/2023 09:53,,
************2135,32,Miss O F Cordingley,U,Olivia Cordingley,10372,C,10372,01/07/2023,2023,4,25/08/2023,2023,5,2023,5,0.07,0.00,0.07,R,0%,2023,5,,,Indeed,Recruitment advertising on Indeed 0.07,Other,6402,15200,,,Resources,Resources,Y,25/08/2023 11:40,OCORDINGLEY,7219,7964,N,,,,Y,04/09/2023 15:20,JBILLINGTON,25/08/2023,2023,5,OCORDINGLEY,25/08/2023 11:40,N,N
************2135,32,Miss O F Cordingley,U,Olivia Cordingley,10371,C,10371,01/07/2023,2023,4,25/08/2023,2023,5,2023,5,0.81,0.00,0.81,R,0%,2023,5,,,Indeed,Recruitment advertising on Indeed 0.81,Other,3720,15200,,,Resources,Resources,Y,25/08/2023 11:40,OCORDINGLEY,7219,7964,N,,,,Y,04/09/2023 15:20,JBILLINGTON,25/08/2023,2023,5,OCORDINGLEY,25/08/2023 11:39,N,N
************2135,32,Miss O F Cordingley,U,Olivia Cordingley,14434,B,14434,01/07/2023,0,,01/01/1900,0,,0,,0.88,,,,,0,,,,INDEED JOBS,,,,,,,,,Y,25/08/2023 11:40,OCORDINGLEY,7219,284,N,,,,Y,04/09/2023 15:20,JBILLINGTON,01/01/1900,0,,MBLACK,31/07/2023 09:53,,
************2135,32,Miss O F Cordingley,U,Olivia Cordingley,10368,C,10368,01/07/2023,2023,4,25/08/2023,2023,5,2023,5,73.88,0.00,73.88,R,0%,2023,5,,,Indeed,Recruitment advertising on Indeed 73.88,Other,3720,15200,,,Resources,Resources,Y,25/08/2023 11:38,OCORDINGLEY,7218,7963,N,,,,Y,04/09/2023 15:20,JBILLINGTON,25/08/2023,2023,5,OCORDINGLEY,25/08/2023 11:36,N,N
************2135,32,Miss O F Cordingley,U,Olivia Cordingley,10369,C,10369,01/07/2023,2023,4,25/08/2023,2023,5,2023,5,103.11,0.00,103.11,R,0%,2023,5,,,Indeed,Recruitment advertising on Indeed 103.11,Other,6501,15200,,,Resources,Resources,Y,25/08/2023 11:38,OCORDINGLEY,7218,7963,N,,,,Y,04/09/2023 15:20,JBILLINGTON,25/08/2023,2023,5,OCORDINGLEY,25/08/2023 11:36,N,N
************2135,32,Miss O F Cordingley,U,Olivia Cordingley,10370,C,10370,01/07/2023,2023,4,25/08/2023,2023,5,2023,5,323.43,0.00,323.43,R,0%,2023,5,,,Indeed,Recruitment advertising on Indeed 323.43,Other,6402,15200,,,Resources,Resources,Y,25/08/2023 11:38,OCORDINGLEY,7218,7963,N,,,,Y,04/09/2023 15:20,JBILLINGTON,25/08/2023,2023,5,OCORDINGLEY,25/08/2023 11:37,N,N
************2135,32,Miss O F Cordingley,U,Olivia Cordingley,14435,B,14435,01/07/2023,0,,01/01/1900,0,,0,,500.42,,,,,0,,,,INDEED JOBS,,,,,,,,,Y,25/08/2023 11:38,OCORDINGLEY,7218,284,N,,,,Y,04/09/2023 15:20,JBILLINGTON,01/01/1900,0,,MBLACK,31/07/2023 09:53,,
************6498,34,P J Holroyd,U,Pamela Holroyd,14606,B,14606,21/09/2023,0,,01/01/1900,0,,0,,"1,386.67",,,,,0,,,,PARTINGTONS HOLIDAY CE,,,,,,,,,N,,,0,286,N,,,,N,,,01/01/1900,0,,MBLACK,29/09/2023 09:37,,
************6498,34,P J Holroyd,U,Pamela Holroyd,14577,B,14577,12/09/2023,0,,01/01/1900,0,,0,,990.00,,,,,0,,,,BKG HOTEL AT BOOKING.C,,,,,,,,,N,,,0,286,N,,,,N,,,01/01/1900,0,,MBLACK,29/09/2023 09:37,,
************6498,34,P J Holroyd,U,Pamela Holroyd,14599,B,14599,06/09/2023,0,,01/01/1900,0,,0,,356.11,,,,,0,,,,AMZNMKTPLACE AMAZON.CO,,,,,,,,,N,,,0,286,N,,,,N,,,01/01/1900,0,,MBLACK,29/09/2023 09:37,,
************6498,34,P J Holroyd,U,Pamela Holroyd,14563,B,14563,29/08/2023,0,,01/01/1900,0,,0,,"1,848.00",,,,,0,,,,BKG HOTEL AT BOOKING.C,,,,,,,,,N,,,0,286,N,,,,N,,,01/01/1900,0,,MBLACK,29/09/2023 09:37,,
************6498,34,P J Holroyd,U,Pamela Holroyd,10324,C,10324,22/08/2023,2023,5,07/08/2023,2023,5,2023,5,148.72,24.79,123.93,B,20%,2023,5,,,amazon,white goods,Other,5140,64002,DA,,Resources,Resources,Y,07/08/2023 11:32,PHOLROYD,7210,7943,N,,,,Y,07/08/2023 11:37,MBROADHURST,07/08/2023,2023,5,PHOLROYD,07/08/2023 11:30,N,N
************6498,34,P J Holroyd,U,Pamela Holroyd,10376,C,10376,15/08/2023,2023,5,29/08/2023,2023,5,2023,5,340.00,56.67,283.33,B,20%,2023,5,,,ARGOS,white goods/ beds,Other,5140,64002,DA,,Resources,Resources,Y,29/08/2023 13:07,PHOLROYD,7257,7967,N,,,,Y,31/08/2023 15:44,MBROADHURST,29/08/2023,2023,5,PHOLROYD,29/08/2023 13:02,N,N
************6498,34,P J Holroyd,U,Pamela Holroyd,14548,B,14548,15/08/2023,0,,01/01/1900,0,,0,,340.00,,,,,0,,,,WWW.ARGOS.CO.UK,,,,,,,,,Y,29/08/2023 13:07,PHOLROYD,7257,285,N,,,,Y,31/08/2023 15:44,MBROADHURST,01/01/1900,0,,MBLACK,29/08/2023 11:47,,
************6498,34,P J Holroyd,U,Pamela Holroyd,10379,C,10379,11/08/2023,2023,5,29/08/2023,2023,5,2023,5,280.00,46.67,233.33,B,20%,2023,5,,,booking.com,TA -,Other,5140,46814,,,Resources,Resources,Y,29/08/2023 13:07,PHOLROYD,7257,7970,N,,,,Y,31/08/2023 15:44,MBROADHURST,29/08/2023,2023,5,PHOLROYD,29/08/2023 13:07,N,N
************6498,34,P J Holroyd,U,Pamela Holroyd,14540,B,14540,11/08/2023,0,,01/01/1900,0,,0,,280.00,,,,,0,,,,BKG HOTEL AT BOOKING.C,,,,,,,,,Y,29/08/2023 13:07,PHOLROYD,7257,285,N,,,,Y,31/08/2023 15:44,MBROADHURST,01/01/1900,0,,MBLACK,29/08/2023 11:47,,
************6498,34,P J Holroyd,U,Pamela Holroyd,10377,C,10377,09/08/2023,2023,5,29/08/2023,2023,5,2023,5,197.20,32.87,164.33,B,20%,2023,5,,,PREMIER INN,da accommodation,Other,5140,64002,DA,,Resources,Resources,Y,29/08/2023 13:07,PHOLROYD,7257,7968,N,,,,Y,31/08/2023 15:44,MBROADHURST,29/08/2023,2023,5,PHOLROYD,29/08/2023 13:03,N,N
************6498,34,P J Holroyd,U,Pamela Holroyd,14534,B,14534,09/08/2023,0,,01/01/1900,0,,0,,197.20,,,,,0,,,,PREMIER INN,,,,,,,,,Y,29/08/2023 13:07,PHOLROYD,7257,285,N,,,,Y,31/08/2023 15:44,MBROADHURST,01/01/1900,0,,MBLACK,29/08/2023 11:47,,
************6498,34,P J Holroyd,U,Pamela Holroyd,10378,C,10378,09/08/2023,2023,5,29/08/2023,2023,5,2023,5,499.00,83.17,415.83,B,20%,2023,5,,,amazon,beds,Other,5140,64002,DA,,Resources,Resources,Y,29/08/2023 13:07,PHOLROYD,7257,7969,N,,,,Y,31/08/2023 15:44,MBROADHURST,29/08/2023,2023,5,PHOLROYD,29/08/2023 13:05,N,N
************6498,34,P J Holroyd,U,Pamela Holroyd,14530,B,14530,09/08/2023,0,,01/01/1900,0,,0,,499.00,,,,,0,,,,AMZNMKTPLACE,,,,,,,,,Y,29/08/2023 13:07,PHOLROYD,7257,285,N,,,,Y,31/08/2023 15:44,MBROADHURST,01/01/1900,0,,MBLACK,29/08/2023 11:47,,
************6498,34,P J Holroyd,U,Pamela Holroyd,10320,C,10320,07/08/2023,2023,5,07/08/2023,2023,5,2023,5,247.62,41.27,206.35,B,20%,2023,5,,,amazon,beds,Other,5140,64002,DA,,Resources,Resources,Y,07/08/2023 11:32,PHOLROYD,7210,7939,N,,,,Y,07/08/2023 11:37,MBROADHURST,07/08/2023,2023,5,PHOLROYD,07/08/2023 11:24,N,N
************6498,34,P J Holroyd,U,Pamela Holroyd,10375,C,10375,07/08/2023,2023,5,29/08/2023,2023,5,2023,5,465.00,77.50,387.50,B,20%,2023,5,,,amazon,Goods,Other,5140,64002,DA,,Resources,Resources,Y,29/08/2023 13:07,PHOLROYD,7257,7966,N,,,,Y,31/08/2023 15:44,MBROADHURST,29/08/2023,2023,5,PHOLROYD,29/08/2023 13:00,N,N
************6498,34,P J Holroyd,U,Pamela Holroyd,14527,B,14527,07/08/2023,0,,01/01/1900,0,,0,,465.00,,,,,0,,,,AMZNMKTPLACE,,,,,,,,,Y,29/08/2023 13:07,PHOLROYD,7257,285,N,,,,Y,31/08/2023 15:44,MBROADHURST,01/01/1900,0,,MBLACK,29/08/2023 11:47,,
************6498,34,P J Holroyd,U,Pamela Holroyd,14423,B,14423,22/07/2023,0,,01/01/1900,0,,0,,148.72,,,,,0,,,,AMAZON.CO.UK H45L23QI5,,,,,,,,,Y,07/08/2023 11:32,PHOLROYD,7210,284,N,,,,Y,07/08/2023 11:37,MBROADHURST,01/01/1900,0,,MBLACK,31/07/2023 09:53,,
************6498,34,P J Holroyd,U,Pamela Holroyd,10323,C,10323,18/07/2023,2023,4,07/08/2023,2023,5,2023,5,499.73,83.29,416.44,B,20%,2023,5,,,TRAVELODGE,swales,Other,5140,46814,,,Resources,Resources,Y,07/08/2023 11:32,PHOLROYD,7210,7942,N,,,,Y,07/08/2023 11:37,MBROADHURST,07/08/2023,2023,5,PHOLROYD,07/08/2023 11:29,N,N
************6498,34,P J Holroyd,U,Pamela Holroyd,14478,B,14478,18/07/2023,0,,01/01/1900,0,,0,,499.73,,,,,0,,,,TRAVELODGE,,,,,,,,,Y,07/08/2023 11:32,PHOLROYD,7210,284,N,,,,Y,07/08/2023 11:37,MBROADHURST,01/01/1900,0,,MBLACK,31/07/2023 09:53,,
************6498,34,P J Holroyd,U,Pamela Holroyd,10322,C,10322,12/07/2023,2023,4,07/08/2023,2023,5,2023,5,415.08,69.18,345.90,B,20%,2023,5,,,TRAVELODGE,sawyer,Other,5140,46814,,,Resources,Resources,Y,07/08/2023 11:32,PHOLROYD,7210,7941,N,,,,Y,07/08/2023 11:37,MBROADHURST,07/08/2023,2023,5,PHOLROYD,07/08/2023 11:27,N,N
************6498,34,P J Holroyd,U,Pamela Holroyd,14464,B,14464,12/07/2023,0,,01/01/1900,0,,0,,415.08,,,,,0,,,,TRAVELODGE,,,,,,,,,Y,07/08/2023 11:32,PHOLROYD,7210,284,N,,,,Y,07/08/2023 11:37,MBROADHURST,01/01/1900,0,,MBLACK,31/07/2023 09:53,,
************6498,34,P J Holroyd,U,Pamela Holroyd,10230,C,10230,12/07/2023,2023,4,05/07/2023,2023,4,2023,4,552.00,92.00,460.00,B,20%,2023,4,,,premier inn,TA doe D Sykes,Other,5140,46814,,,Resources,Resources,Y,05/07/2023 14:43,PHOLROYD,7153,7854,N,,,,Y,05/07/2023 15:51,MBROADHURST,05/07/2023,2023,4,PHOLROYD,05/07/2023 13:37,N,N
************6498,34,P J Holroyd,U,Pamela Holroyd,10321,C,10321,09/07/2023,2023,4,07/08/2023,2023,5,2023,5,203.08,33.85,169.23,B,20%,2023,5,,,amazon,beds,Other,5140,64002,DA,,Resources,Resources,Y,07/08/2023 11:32,PHOLROYD,7210,7940,N,,,,Y,07/08/2023 11:37,MBROADHURST,07/08/2023,2023,5,PHOLROYD,07/08/2023 11:26,N,N
************6498,34,P J Holroyd,U,Pamela Holroyd,14460,B,14460,09/07/2023,0,,01/01/1900,0,,0,,203.08,,,,,0,,,,AMZNMKTPLACE,,,,,,,,,Y,07/08/2023 11:32,PHOLROYD,7210,284,N,,,,Y,07/08/2023 11:37,MBROADHURST,01/01/1900,0,,MBLACK,31/07/2023 09:53,,
************6498,34,P J Holroyd,U,Pamela Holroyd,10316,C,10316,07/07/2023,2023,4,07/08/2023,2023,5,2023,5,121.44,0.00,121.44,B,20%,2023,5,,,san remo,orchison,Other,5140,46814,,,Resources,Resources,Y,07/08/2023 11:32,PHOLROYD,7210,7935,N,,,,Y,07/08/2023 11:37,MBROADHURST,07/08/2023,2023,5,PHOLROYD,07/08/2023 11:18,N,N
************6498,34,P J Holroyd,U,Pamela Holroyd,14458,B,14458,07/07/2023,0,,01/01/1900,0,,0,,121.44,,,,,0,,,,SAN REMO APARTMENTS,,,,,,,,,Y,07/08/2023 11:32,PHOLROYD,7210,284,N,,,,Y,07/08/2023 11:37,MBROADHURST,01/01/1900,0,,MBLACK,31/07/2023 09:53,,
************6498,34,P J Holroyd,U,Pamela Holroyd,14459,B,14459,07/07/2023,0,,01/01/1900,0,,0,,247.62,,,,,0,,,,AMZNMKTPLACE AMAZON.CO,,,,,,,,,Y,07/08/2023 11:32,PHOLROYD,7210,284,N,,,,Y,07/08/2023 11:37,MBROADHURST,01/01/1900,0,,MBLACK,31/07/2023 09:53,,
************6498,34,P J Holroyd,U,Pamela Holroyd,14454,B,14454,06/07/2023,0,,01/01/1900,0,,0,,633.34,,,,,0,,,,TRAVELODGE,,,,,,,,,Y,07/08/2023 11:32,PHOLROYD,7210,284,N,,,,Y,07/08/2023 11:37,MBROADHURST,01/01/1900,0,,MBLACK,31/07/2023 09:53,,
************6498,34,P J Holroyd,U,Pamela Holroyd,10318,C,10318,05/07/2023,2023,4,07/08/2023,2023,5,2023,5,590.00,98.33,491.67,B,20%,2023,5,,,sandpiper,ta,Other,5140,46814,,,Resources,Resources,Y,07/08/2023 11:32,PHOLROYD,7210,7937,N,,,,Y,07/08/2023 11:37,MBROADHURST,07/08/2023,2023,5,PHOLROYD,07/08/2023 11:21,N,N
************6498,34,P J Holroyd,U,Pamela Holroyd,14448,B,14448,05/07/2023,0,,01/01/1900,0,,0,,590.00,,,,,0,,,,SANDPIPER APARTMENTS,,,,,,,,,Y,07/08/2023 11:32,PHOLROYD,7210,284,N,,,,Y,07/08/2023 11:37,MBROADHURST,01/01/1900,0,,MBLACK,31/07/2023 09:53,,
************6498,34,P J Holroyd,U,Pamela Holroyd,10317,C,10317,03/07/2023,2023,4,07/08/2023,2023,5,2023,5,625.50,104.25,521.25,B,20%,2023,5,,,PREMIER INN,family TA,Other,5140,46814,,,Resources,Resources,Y,07/08/2023 11:32,PHOLROYD,7210,7936,N,,,,Y,07/08/2023 11:37,MBROADHURST,07/08/2023,2023,5,PHOLROYD,07/08/2023 11:20,N,N
************6498,34,P J Holroyd,U,Pamela Holroyd,14441,B,14441,03/07/2023,0,,01/01/1900,0,,0,,625.50,,,,,0,,,,PREMIER INN,,,,,,,,,Y,07/08/2023 11:32,PHOLROYD,7210,284,N,,,,Y,07/08/2023 11:37,MBROADHURST,01/01/1900,0,,MBLACK,31/07/2023 09:53,,
************8505,35,ROBERT L GREAVES,S,Tracey Waistle,10457,C,10457,25/09/2023,2023,6,27/09/2023,2023,6,2023,6,93.94,15.66,78.28,B,20%,2023,6,Y,408556737,Toolstation,Door parts Receipt Order no: XNW446273382,Other,6902,,,,People and Places,People and Places,Y,29/09/2023 09:38,HGRUNDY,7297,8044,N,,,,Y,02/10/2023 15:52,GSCOTT,27/09/2023,2023,6,TWAISTLE,27/09/2023 13:46,N,N
************8505,35,ROBERT L GREAVES,S,Tracey Waistle,14618,B,14618,25/09/2023,0,,01/01/1900,0,,0,,93.94,,,,,0,,,,TOOLSTATION LIMITED,,,,,,,,,Y,29/09/2023 09:38,HGRUNDY,7297,286,N,,,,Y,02/10/2023 15:52,GSCOTT,01/01/1900,0,,MBLACK,29/09/2023 09:37,,
************8505,35,ROBERT L GREAVES,S,Tracey Waistle,10458,C,10458,20/09/2023,2023,6,27/09/2023,2023,6,2023,6,202.80,33.80,169.00,B,20%,2023,6,Y,GB408556737,Keyline,Parts Invoice no: 09A41970,Other,6953,42002,,,People and Places,People and Places,Y,29/09/2023 09:38,HGRUNDY,7300,8045,N,,,,Y,02/10/2023 15:52,GSCOTT,27/09/2023,2023,6,TWAISTLE,27/09/2023 13:50,N,N
************8505,35,ROBERT L GREAVES,S,Tracey Waistle,14585,B,14585,20/09/2023,0,,01/01/1900,0,,0,,202.80,,,,,0,,,,KEYLINE,,,,,,,,,Y,29/09/2023 09:38,HGRUNDY,7300,286,N,,,,Y,02/10/2023 15:52,GSCOTT,01/01/1900,0,,MBLACK,29/09/2023 09:37,,
************8505,35,ROBERT L GREAVES,S,Tracey Waistle,10436,C,10436,06/09/2023,2023,6,14/09/2023,2023,6,2023,6,305.06,50.84,254.22,B,20%,2023,6,Y,416501973,The Lock Shop,Padlocks and keys Delivery note no: 45048,Other,3260,42002,,,People and Places,People and Places,Y,29/09/2023 09:38,HGRUNDY,7296,8024,N,,,,Y,02/10/2023 15:52,GSCOTT,14/09/2023,2023,6,TWAISTLE,14/09/2023 15:43,N,N
************8505,35,ROBERT L GREAVES,S,Tracey Waistle,14601,B,14601,06/09/2023,0,,01/01/1900,0,,0,,305.06,,,,,0,,,,THE LOCK SHOP,,,,,,,,,Y,29/09/2023 09:38,HGRUNDY,7296,286,N,,,,Y,02/10/2023 15:52,GSCOTT,01/01/1900,0,,MBLACK,29/09/2023 09:37,,
************8505,35,ROBERT L GREAVES,S,Tracey Waistle,10411,C,10411,05/09/2023,2023,6,05/09/2023,2023,6,2023,6,21.00,0.00,21.00,D,0%,2023,6,,,asda,Kettle for Transport Brew room,Other,6955,42002,,,People and Places,People and Places,Y,29/09/2023 09:38,HGRUNDY,7298,7999,N,,,,Y,02/10/2023 15:52,GSCOTT,05/09/2023,2023,6,CCLOHERTYJONES,05/09/2023 11:13,N,N
************8505,35,ROBERT L GREAVES,S,Tracey Waistle,14597,B,14597,05/09/2023,0,,01/01/1900,0,,0,,21.00,,,,,0,,,,ASDA STOES LTD 5759,,,,,,,,,Y,29/09/2023 09:38,HGRUNDY,7298,286,N,,,,Y,02/10/2023 15:52,GSCOTT,01/01/1900,0,,MBLACK,29/09/2023 09:37,,
************8505,35,ROBERT L GREAVES,S,Tracey Waistle,10412,C,10412,05/09/2023,2023,6,05/09/2023,2023,6,2023,6,300.00,50.00,250.00,B,20%,2023,6,,416501973,the lock shop,2 x NE12 padlocks with C3 shackle,Other,6953,42002,,,People and Places,People and Places,Y,29/09/2023 09:38,HGRUNDY,7299,8000,N,,,,Y,02/10/2023 15:52,GSCOTT,05/09/2023,2023,6,CCLOHERTYJONES,05/09/2023 14:31,N,N
************8505,35,ROBERT L GREAVES,S,Tracey Waistle,14598,B,14598,05/09/2023,0,,01/01/1900,0,,0,,300.00,,,,,0,,,,THE LOCK SHOP,,,,,,,,,Y,29/09/2023 09:38,HGRUNDY,7299,286,N,,,,Y,02/10/2023 15:52,GSCOTT,01/01/1900,0,,MBLACK,29/09/2023 09:37,,
************8505,35,ROBERT L GREAVES,S,Tracey Waistle,10433,C,10433,24/08/2023,2023,5,14/09/2023,2023,6,2023,6,50.04,8.34,41.70,B,20%,2023,6,Y,992488166,Auto Bitz Motor Factors Ltd,Boots Advice note no: 173088,Other,6902,,,,People and Places,People and Places,Y,14/09/2023 15:05,TWAISTLE,7279,8021,N,,,,Y,14/09/2023 15:40,GSCOTT,14/09/2023,2023,6,TWAISTLE,14/09/2023 13:38,N,N
************8505,35,ROBERT L GREAVES,S,Tracey Waistle,14496,B,14496,24/08/2023,0,,01/01/1900,0,,0,,50.04,,,,,0,,,,AUTOBITZ MOTOR FACTORS,,,,,,,,,Y,14/09/2023 15:05,TWAISTLE,7279,285,N,,,,Y,14/09/2023 15:40,GSCOTT,01/01/1900,0,,MBLACK,29/08/2023 11:47,,
************8505,35,ROBERT L GREAVES,S,Tracey Waistle,10396,C,10396,24/08/2023,2023,5,31/08/2023,2023,5,2023,5,161.88,26.98,134.90,B,20%,2023,5,Y,416501973,The Lock Shop,Padlock and keys Invoice no: 45041,Other,6953,42002,,,People and Places,People and Places,Y,31/08/2023 15:28,TWAISTLE,7267,7984,N,,,,Y,14/09/2023 15:40,GSCOTT,31/08/2023,2023,5,TWAISTLE,31/08/2023 10:36,N,N
************8505,35,ROBERT L GREAVES,S,Tracey Waistle,14497,B,14497,24/08/2023,0,,01/01/1900,0,,0,,161.88,,,,,0,,,,THE LOCK SHOP,,,,,,,,,Y,31/08/2023 15:28,TWAISTLE,7267,285,N,,,,Y,14/09/2023 15:40,GSCOTT,01/01/1900,0,,MBLACK,29/08/2023 11:47,,
************8505,35,ROBERT L GREAVES,S,Tracey Waistle,10395,C,10395,23/08/2023,2023,5,31/08/2023,2023,5,2023,5,266.40,44.40,222.00,B,20%,2023,5,Y,416501973,The Lock shop,Padlocks Invoice no: 45040,Other,6902,,,,People and Places,People and Places,Y,31/08/2023 15:28,TWAISTLE,7267,7983,N,,,,Y,14/09/2023 15:40,GSCOTT,31/08/2023,2023,5,TWAISTLE,31/08/2023 10:22,N,N
************8505,35,ROBERT L GREAVES,S,Tracey Waistle,14493,B,14493,23/08/2023,0,,01/01/1900,0,,0,,266.40,,,,,0,,,,THE LOCK SHOP,,,,,,,,,Y,31/08/2023 15:28,TWAISTLE,7267,285,N,,,,Y,14/09/2023 15:40,GSCOTT,01/01/1900,0,,MBLACK,29/08/2023 11:47,,
************8505,35,ROBERT L GREAVES,S,Tracey Waistle,10432,C,10432,23/08/2023,2023,5,14/09/2023,2023,6,2023,6,322.50,0.00,322.50,D,0%,2023,5,,,DVLA,DVLA Vehicle Tax Application ref: 1239-5532-8389-9846,Other,3131,30502,V73,,People and Places,People and Places,Y,14/09/2023 15:05,TWAISTLE,7279,8020,N,,,,Y,14/09/2023 15:40,GSCOTT,14/09/2023,2023,6,TWAISTLE,14/09/2023 13:14,N,N
************8505,35,ROBERT L GREAVES,S,Tracey Waistle,14495,B,14495,23/08/2023,0,,01/01/1900,0,,0,,322.50,,,,,0,,,,DVLA VEHICLE TAX,,,,,,,,,Y,14/09/2023 15:05,TWAISTLE,7279,285,N,,,,Y,14/09/2023 15:40,GSCOTT,01/01/1900,0,,MBLACK,29/08/2023 11:47,,
************8505,35,ROBERT L GREAVES,S,Tracey Waistle,10361,C,10361,21/08/2023,2023,5,22/08/2023,2023,5,2023,5,322.50,0.00,322.50,D,0%,2023,5,,,DVLA,V82 Tax,Other,6902,30502,v82,,People and Places,People and Places,Y,29/08/2023 11:48,JCARTRIDGE,7239,7959,N,,,,Y,14/09/2023 15:40,GSCOTT,22/08/2023,2023,5,CCLOHERTYJONES,22/08/2023 17:17,N,N
************8505,35,ROBERT L GREAVES,S,Tracey Waistle,10362,C,10362,21/08/2023,2023,5,22/08/2023,2023,5,2023,5,322.50,0.00,322.50,D,0%,2023,5,,,DVLA,V94 tax,Other,5221,30502,V94,,People and Places,People and Places,Y,29/08/2023 11:48,JCARTRIDGE,7240,7959,N,,,,Y,14/09/2023 15:40,GSCOTT,22/08/2023,2023,5,CCLOHERTYJONES,22/08/2023 17:20,N,N
************8505,35,ROBERT L GREAVES,S,Tracey Waistle,14486,B,14486,21/08/2023,0,,01/01/1900,0,,0,,322.50,,,,,0,,,,DVLA VEHICLE TAX,,,,,,,,,Y,29/08/2023 11:48,JCARTRIDGE,7239,285,N,,,,Y,14/09/2023 15:40,GSCOTT,01/01/1900,0,,MBLACK,29/08/2023 11:47,,
************8505,35,ROBERT L GREAVES,S,Tracey Waistle,14487,B,14487,21/08/2023,0,,01/01/1900,0,,0,,322.50,,,,,0,,,,DVLA VEHICLE TAX,,,,,,,,,Y,29/08/2023 11:48,JCARTRIDGE,7240,285,N,,,,Y,14/09/2023 15:40,GSCOTT,01/01/1900,0,,MBLACK,29/08/2023 11:47,,
************8505,35,ROBERT L GREAVES,S,Tracey Waistle,10354,C,10354,17/08/2023,2023,5,22/08/2023,2023,5,2023,5,21.98,3.66,18.32,B,20%,2023,5,Y,408556737,toolstation,red gorilla flexi tub,Other,6902,40100,,,People and Places,People and Places,Y,29/08/2023 11:48,JCARTRIDGE,7235,7959,N,,,,Y,14/09/2023 15:40,GSCOTT,22/08/2023,2023,5,CCLOHERTYJONES,22/08/2023 16:54,N,N
************8505,35,ROBERT L GREAVES,S,Tracey Waistle,14559,B,14559,17/08/2023,0,,01/01/1900,0,,0,,21.98,,,,,0,,,,TOOLSTATION LIMITED,,,,,,,,,Y,29/08/2023 11:48,JCARTRIDGE,7235,285,N,,,,Y,14/09/2023 15:40,GSCOTT,01/01/1900,0,,MBLACK,29/08/2023 11:47,,
************8505,35,ROBERT L GREAVES,S,Tracey Waistle,10355,C,10355,15/08/2023,2023,5,22/08/2023,2023,5,2023,5,169.24,28.21,141.03,B,20%,2023,5,Y,416501973,the lock shop,"keys, cylinders and lockcases",Other,6902,,,,People and Places,People and Places,Y,29/08/2023 11:48,JCARTRIDGE,7234,7959,N,,,,Y,14/09/2023 15:40,GSCOTT,22/08/2023,2023,5,CCLOHERTYJONES,22/08/2023 16:57,N,N
************8505,35,ROBERT L GREAVES,S,Tracey Waistle,14549,B,14549,15/08/2023,0,,01/01/1900,0,,0,,169.24,,,,,0,,,,THE LOCK SHOP,,,,,,,,,Y,29/08/2023 11:48,JCARTRIDGE,7234,285,N,,,,Y,14/09/2023 15:40,GSCOTT,01/01/1900,0,,MBLACK,29/08/2023 11:47,,
************8505,35,ROBERT L GREAVES,S,Tracey Waistle,10394,C,10394,14/08/2023,2023,5,31/08/2023,2023,5,2023,5,4.97,0.83,4.14,B,20%,2023,5,Y,408556737,Toolstation,Drain Plug Receipt Order No: XNW409417810,Other,3380,42002,,,People and Places,People and Places,Y,31/08/2023 15:28,TWAISTLE,7267,7982,N,,,,Y,14/09/2023 15:40,GSCOTT,31/08/2023,2023,5,TWAISTLE,31/08/2023 10:19,N,N
************8505,35,ROBERT L GREAVES,S,Tracey Waistle,14545,B,14545,14/08/2023,0,,01/01/1900,0,,0,,4.97,,,,,0,,,,TOOLSTATION LIMITED,,,,,,,,,Y,31/08/2023 15:28,TWAISTLE,7267,285,N,,,,Y,14/09/2023 15:40,GSCOTT,01/01/1900,0,,MBLACK,29/08/2023 11:47,,
************8505,35,ROBERT L GREAVES,S,Tracey Waistle,14531,B,14531,09/08/2023,0,,01/01/1900,0,,0,,303.90,,,,,0,,,,THE LOCK SHOP,,,,,,,,,Y,29/08/2023 13:01,JCARTRIDGE,7255,285,N,,,,Y,14/09/2023 15:40,GSCOTT,01/01/1900,0,,MBLACK,29/08/2023 11:47,,
************8505,35,ROBERT L GREAVES,S,Tracey Waistle,10356,C,10356,08/08/2023,2023,5,22/08/2023,2023,5,2023,5,303.90,50.65,253.25,B,20%,2023,5,Y,416501973,the lock shop,green level padlock and keys,Other,3260,42002,,,People and Places,People and Places,Y,29/08/2023 13:01,JCARTRIDGE,7255,7959,N,,,,Y,14/09/2023 15:40,GSCOTT,22/08/2023,2023,5,CCLOHERTYJONES,22/08/2023 17:07,N,N
************8505,35,ROBERT L GREAVES,S,Tracey Waistle,10359,C,10359,03/08/2023,2023,5,22/08/2023,2023,5,2023,5,33.90,5.65,28.25,B,20%,2023,5,Y,416501973,the lock shop,2 green level keys,Other,6953,42002,,,People and Places,People and Places,Y,29/08/2023 11:48,JCARTRIDGE,7233,7959,N,,,,Y,14/09/2023 15:40,GSCOTT,22/08/2023,2023,5,CCLOHERTYJONES,22/08/2023 17:13,N,N
************8505,35,ROBERT L GREAVES,S,Tracey Waistle,14523,B,14523,03/08/2023,0,,01/01/1900,0,,0,,33.90,,,,,0,,,,THE LOCK SHOP,,,,,,,,,Y,29/08/2023 11:48,JCARTRIDGE,7233,285,N,,,,Y,14/09/2023 15:40,GSCOTT,01/01/1900,0,,MBLACK,29/08/2023 11:47,,
************8505,35,ROBERT L GREAVES,S,Tracey Waistle,10357,C,10357,01/08/2023,2023,5,22/08/2023,2023,5,2023,5,7.50,1.25,6.25,B,20%,2023,5,Y,394121263,blackpool power tools,makita grinder repair,Other,6902,40102,,,People and Places,People and Places,Y,29/08/2023 11:48,JCARTRIDGE,7236,7959,N,,,,Y,14/09/2023 15:40,GSCOTT,22/08/2023,2023,5,CCLOHERTYJONES,22/08/2023 17:09,N,N
************8505,35,ROBERT L GREAVES,S,Tracey Waistle,14513,B,14513,01/08/2023,0,,01/01/1900,0,,0,,7.50,,,,,0,,,,JEWSON LTD,,,,,,,,,Y,29/08/2023 11:48,JCARTRIDGE,7236,285,N,,,,Y,14/09/2023 15:40,GSCOTT,01/01/1900,0,,MBLACK,29/08/2023 11:47,,
************8505,35,ROBERT L GREAVES,S,Tracey Waistle,10360,C,10360,01/08/2023,2023,5,22/08/2023,2023,5,2023,5,266.40,44.40,222.00,B,20%,2023,5,Y,416501973,the lock shop,12 Abus 506 padlocks,Other,6902,,,,People and Places,People and Places,Y,29/08/2023 11:48,JCARTRIDGE,7237,7959,N,,,,Y,14/09/2023 15:40,GSCOTT,22/08/2023,2023,5,CCLOHERTYJONES,22/08/2023 17:15,N,N
************8505,35,ROBERT L GREAVES,S,Tracey Waistle,14514,B,14514,01/08/2023,0,,01/01/1900,0,,0,,266.40,,,,,0,,,,THE LOCK SHOP,,,,,,,,,Y,29/08/2023 11:48,JCARTRIDGE,7237,285,N,,,,Y,14/09/2023 15:40,GSCOTT,01/01/1900,0,,MBLACK,29/08/2023 11:47,,
************8505,35,ROBERT L GREAVES,S,Tracey Waistle,10358,C,10358,01/08/2023,2023,5,22/08/2023,2023,5,2023,5,303.90,50.65,253.25,B,20%,2023,5,Y,416501973,the lock shop,green level padlock and keys for preesall cem .,Other,6953,42002,,,People and Places,People and Places,Y,29/08/2023 11:48,JCARTRIDGE,7238,7959,N,,,,Y,14/09/2023 15:40,GSCOTT,22/08/2023,2023,5,CCLOHERTYJONES,22/08/2023 17:11,N,N
************8505,35,ROBERT L GREAVES,S,Tracey Waistle,14515,B,14515,01/08/2023,0,,01/01/1900,0,,0,,303.90,,,,,0,,,,THE LOCK SHOP,,,,,,,,,Y,29/08/2023 11:48,JCARTRIDGE,7238,285,N,,,,Y,14/09/2023 15:40,GSCOTT,01/01/1900,0,,MBLACK,29/08/2023 11:47,,
************8505,35,ROBERT L GREAVES,S,Tracey Waistle,10298,C,10298,17/07/2023,2023,4,25/07/2023,2023,4,2023,4,823.38,137.23,686.15,B,20%,2023,4,Y,416501973,the lock shop,5 x green level padlocks 5 green level keys,Other,6953,42002,,,People and Places,People and Places,Y,31/07/2023 09:54,JCARTRIDGE,7189,7914,N,,,,Y,31/07/2023 15:33,GSCOTT,25/07/2023,2023,4,CCLOHERTYJONES,25/07/2023 12:04,N,N
************8505,35,ROBERT L GREAVES,S,Tracey Waistle,14475,B,14475,17/07/2023,0,,01/01/1900,0,,0,,823.38,,,,,0,,,,THE LOCK SHOP,,,,,,,,,Y,31/07/2023 09:54,JCARTRIDGE,7189,284,N,,,,Y,31/07/2023 15:33,GSCOTT,01/01/1900,0,,MBLACK,31/07/2023 09:53,,
************8406,36,Mrs Carol Southern,U,Carol Southern,10466,C,10466,06/09/2023,2023,6,02/10/2023,2023,7,2023,7,22.60,3.77,18.83,B,20%,2023,7,,,IMP Sport,Safety cycling signs for Wyre Wheels,Other,3070,46104,,,People and Places,People and Places,N,,,0,8052,N,,,,N,,,,0,0,CSOUTHERN,02/10/2023 16:49,N,N
************8406,36,Mrs Carol Southern,U,Carol Southern,14600,B,14600,06/09/2023,0,,01/01/1900,0,,0,,22.60,,,,,0,,,,IMPSPORT,,,,,,,,,N,,,0,286,N,,,,N,,,01/01/1900,0,,MBLACK,29/09/2023 09:37,,
************8406,36,Mrs Carol Southern,U,Carol Southern,10393,C,10393,04/08/2023,2023,5,31/08/2023,2023,5,2023,5,106.80,17.80,89.00,B,20%,2023,5,,,training at work group ltd,Bundle of 10 places on the Level 2 food hygiene & safety course,Other,3073,46104,,,People and Places,People and Places,Y,11/09/2023 10:09,JCARTRIDGE,7269,7981,N,,,,Y,11/09/2023 16:57,MBROADHURST,31/08/2023,2023,5,CSOUTHERN,31/08/2023 07:59,N,N
************8406,36,Mrs Carol Southern,U,Carol Southern,14525,B,14525,04/08/2023,0,,01/01/1900,0,,0,,106.80,,,,,0,,,,TRAINING AT WORK GROUP,,,,,,,,,Y,11/09/2023 10:09,JCARTRIDGE,7269,285,N,,,,Y,11/09/2023 16:57,MBROADHURST,01/01/1900,0,,MBLACK,29/08/2023 11:47,,
************4003,37,Veronica Wilson,U,Veronica Wilson,10337,C,10337,14/08/2023,2023,5,14/08/2023,2023,5,2023,5,40.00,0.00,40.00,D,0%,2023,5,,,Information Commissioners Office,Information Commissioners Office - GDPR/Data Protection Act 2018 - Data Protection fee renewal (Electoral Registration Officer Wyre Borough Council),Other,2200,46806,,,Resources,Resources,Y,29/08/2023 11:48,JCARTRIDGE,7242,7951,N,,,,Y,11/09/2023 10:09,CJAMES,14/08/2023,2023,5,VWILSON,14/08/2023 12:44,N,N
************4003,37,Veronica Wilson,U,Veronica Wilson,14547,B,14547,14/08/2023,0,,01/01/1900,0,,0,,40.00,,,,,0,,,,WWW.ICO.ORG.UK,,,,,,,,,Y,29/08/2023 11:48,JCARTRIDGE,7242,285,N,,,,Y,11/09/2023 10:09,CJAMES,01/01/1900,0,,MBLACK,29/08/2023 11:47,,
************4003,37,Veronica Wilson,U,Veronica Wilson,10336,C,10336,14/08/2023,2023,5,14/08/2023,2023,5,2023,5,"2,900.00",0.00,"2,900.00",D,0%,2023,5,,,Information Commissioners Office,Information Commissioners Office - GDPR/Data Protection Act 2018 - Data Protection fee renewal (Wyre Borough Council),Other,6404,46806,,,Resources,Resources,Y,29/08/2023 11:48,JCARTRIDGE,7241,7950,N,,,,Y,11/09/2023 10:09,CJAMES,14/08/2023,2023,5,VWILSON,14/08/2023 12:43,N,N
************4003,37,Veronica Wilson,U,Veronica Wilson,14546,B,14546,14/08/2023,0,,01/01/1900,0,,0,,"2,900.00",,,,,0,,,,WWW.ICO.ORG.UK,,,,,,,,,Y,29/08/2023 11:48,JCARTRIDGE,7241,285,N,,,,Y,11/09/2023 10:09,CJAMES,01/01/1900,0,,MBLACK,29/08/2023 11:47,,
************4003,37,Veronica Wilson,U,Veronica Wilson,10244,C,10244,04/07/2023,2023,4,12/07/2023,2023,4,2023,4,"1,500.00",0.00,"1,500.00",E,0%,2023,4,,,Training Link,Training Link - Order #26450. AAT Levels 3 and 4 Diploma in Professional Accounting - Blended Course Package (AP),Other,6402,17012,,,Resources,Resources,Y,31/07/2023 09:54,VWILSON,7190,7869,N,,,,Y,31/07/2023 14:23,CJAMES,12/07/2023,2023,4,VWILSON,12/07/2023 15:15,N,N
************4003,37,Veronica Wilson,U,Veronica Wilson,14445,B,14445,04/07/2023,0,,01/01/1900,0,,0,,"1,500.00",,,,,0,,,,TRAINING LINK,,,,,,,,,Y,31/07/2023 09:54,VWILSON,7190,284,N,,,,Y,31/07/2023 14:23,CJAMES,01/01/1900,0,,MBLACK,31/07/2023 09:53,,
************9143,38,Julie Cartridge,U,Julie Cartridge,10441,C,10441,19/09/2023,2023,6,19/09/2023,2023,6,2023,6,997.92,166.32,831.60,B,20%,2023,6,,,Premier Inn,Booking Reference BCTR127241 Accommodation for Chris Atherton & Lee Whittle from 04/12/23-08/12/23 including breakfast and Evening meal in 2 x Premier Plus rooms. For Barrow-in-Furness Annual Coastal Defence Inspection,Travel and Accommodation,8223,4020,,,Resources,Resources,Y,29/09/2023 09:38,HGRUNDY,7301,8030,N,,,,Y,03/10/2023 13:59,VWILSON,19/09/2023,2023,6,JCARTRIDGE,19/09/2023 15:28,N,N
************9143,38,Julie Cartridge,U,Julie Cartridge,14586,B,14586,19/09/2023,0,,01/01/1900,0,,0,,997.92,,,,,0,,,,PREMIER INN,,,,,,,,,Y,29/09/2023 09:38,HGRUNDY,7301,286,N,,,,Y,03/10/2023 13:59,VWILSON,01/01/1900,0,,MBLACK,29/09/2023 09:37,,
************9143,38,Julie Cartridge,U,Julie Cartridge,10439,C,10439,18/09/2023,2023,6,18/09/2023,2023,6,2023,6,90.99,0.00,90.99,C,0%,2023,6,,,The Trainline,Train Tickets for Cllr Cartridge for travel from Poulton to Coventry on 20-09-23,Travel and Accommodation,2000,33000,,,Resources,Resources,Y,29/09/2023 09:38,HGRUNDY,7302,8027,N,,,,Y,03/10/2023 13:59,VWILSON,18/09/2023,2023,6,JCARTRIDGE,18/09/2023 10:52,N,N
************9143,38,Julie Cartridge,U,Julie Cartridge,14582,B,14582,18/09/2023,0,,01/01/1900,0,,0,,90.99,,,,,0,,,,TRAINLINE,,,,,,,,,Y,29/09/2023 09:38,HGRUNDY,7302,286,N,,,,Y,03/10/2023 13:59,VWILSON,01/01/1900,0,,MBLACK,29/09/2023 09:37,,
************9143,38,Julie Cartridge,U,Julie Cartridge,10414,C,10414,30/08/2023,2023,5,11/09/2023,2023,6,2023,6,102.00,0.00,102.00,E,0%,2023,5,,,Kennsington Community Learning,AAT Q2022 L3 Tax Processes for Business Exam for Andy Palfreymam on 01/09/23,Other,6402,17012,,,Resources,Resources,Y,02/10/2023 12:59,HGRUNDY,7315,8003,N,,,,Y,03/10/2023 13:59,VWILSON,11/09/2023,2023,6,JCARTRIDGE,11/09/2023 10:31,N,N
************9143,38,Julie Cartridge,U,Julie Cartridge,10391,C,10391,30/08/2023,2023,5,30/08/2023,2023,5,2023,5,217.96,36.33,181.63,B,20%,2023,5,,,The Holiday Inn,Hotel Accommodation for Wayne Clarke and Patrick Cantley On 18/10/23-19/10/23,Travel and Accommodation,3341,17010,,,Resources,Resources,N,,,0,7979,N,,,,N,,,,0,0,JCARTRIDGE,30/08/2023 14:58,N,N
************9143,38,Julie Cartridge,U,Julie Cartridge,14564,B,14564,29/08/2023,0,,01/01/1900,0,,0,,102.00,,,,,0,,,,KCLC ONLINE,,,,,,,,,Y,02/10/2023 12:59,HGRUNDY,7315,286,N,,,,Y,03/10/2023 13:59,VWILSON,01/01/1900,0,,MBLACK,29/09/2023 09:37,,
************9143,38,Julie Cartridge,U,Julie Cartridge,10353,C,10353,22/08/2023,2023,5,22/08/2023,2023,5,2023,5,10.44,0.00,10.44,E,0%,2023,5,,,Primo Drinks Blackpool,Charge for using credit card to pay for drinks for Julia Robinson for a wedding at Marine Hall,Other,3040,41001,,,Resources,Resources,Y,29/08/2023 13:03,JCARTRIDGE,7256,7958,N,,,,Y,30/08/2023 11:33,VWILSON,22/08/2023,2023,5,JCARTRIDGE,22/08/2023 15:39,N,N
************9143,38,Julie Cartridge,U,Julie Cartridge,10413,C,10413,22/08/2023,2023,5,11/09/2023,2023,6,2023,6,37.50,0.00,37.50,E,0%,2023,5,,,Tavcom Academy,BodyCam Training Course for John Bettle,Other,6905,17010,,,Resources,Resources,Y,11/09/2023 10:14,JCARTRIDGE,7270,8002,N,,,,Y,11/09/2023 13:37,VWILSON,11/09/2023,2023,6,JCARTRIDGE,11/09/2023 10:14,N,N
************9143,38,Julie Cartridge,U,Julie Cartridge,14489,B,14489,22/08/2023,0,,01/01/1900,0,,0,,37.50,,,,,0,,,,TAVCOM TRAINING,,,,,,,,,Y,11/09/2023 10:14,JCARTRIDGE,7270,285,N,,,,Y,11/09/2023 13:37,VWILSON,01/01/1900,0,,MBLACK,29/08/2023 11:47,,
************9143,38,Julie Cartridge,U,Julie Cartridge,10351,C,10351,22/08/2023,2023,5,22/08/2023,2023,5,2023,5,347.88,57.98,289.90,B,20%,2023,5,,,Primo Drinks Blackpool,5 x Red Stripe CAN (24x440ml) 5 x Carling CAN (24x500ml) For Julia Robinson for wedding at Marine Hall,Other,3040,41001,,,Resources,Resources,Y,29/08/2023 13:03,JCARTRIDGE,7256,7957,N,,,,Y,30/08/2023 11:33,VWILSON,22/08/2023,2023,5,JCARTRIDGE,22/08/2023 15:30,N,N
************9143,38,Julie Cartridge,U,Julie Cartridge,14490,B,14490,22/08/2023,0,,01/01/1900,0,,0,,358.32,,,,,0,,,,PRIMO DRINKS (GM) LTD,,,,,,,,,Y,29/08/2023 13:03,JCARTRIDGE,7256,285,N,,,,Y,30/08/2023 11:33,VWILSON,01/01/1900,0,,MBLACK,29/08/2023 11:47,,
************9143,38,Julie Cartridge,U,Julie Cartridge,10340,C,10340,21/08/2023,2023,5,21/08/2023,2023,5,2023,5,71.64,11.94,59.70,B,20%,2023,5,,,Green Magic,"18 x wire-rope-fittings with loop cable, adjustable hook for Mark Fenton. UKSPF Cleveleys Town Centre Study",Other,3786,46841,,,Resources,Resources,Y,29/08/2023 11:48,JCARTRIDGE,7245,7954,N,,,,Y,30/08/2023 11:35,VWILSON,21/08/2023,2023,5,JCARTRIDGE,21/08/2023 09:42,N,N
************9143,38,Julie Cartridge,U,Julie Cartridge,14488,B,14488,21/08/2023,0,,01/01/1900,0,,0,,71.64,,,,,0,,,,WWW.SIGN-HOLDERS.CO.UK,,,,,,,,,Y,29/08/2023 11:48,JCARTRIDGE,7245,285,N,,,,Y,30/08/2023 11:35,VWILSON,01/01/1900,0,,MBLACK,29/08/2023 11:47,,
************9143,38,Julie Cartridge,U,Julie Cartridge,10339,C,10339,16/08/2023,2023,5,16/08/2023,2023,5,2023,5,65.97,0.00,65.97,C,0%,2023,5,,,The Trainline,Train travel for Charlie Thwaites on 03/09/23 from Poulton to Milton Keynes return,Travel and Accommodation,6302,17010,,,Resources,Resources,Y,29/08/2023 11:48,JCARTRIDGE,7244,7953,N,,,,Y,30/08/2023 11:35,VWILSON,16/08/2023,2023,5,JCARTRIDGE,16/08/2023 14:10,N,N
************9143,38,Julie Cartridge,U,Julie Cartridge,14552,B,14552,16/08/2023,0,,01/01/1900,0,,0,,65.97,,,,,0,,,,TRAINLINE,,,,,,,,,Y,29/08/2023 11:48,JCARTRIDGE,7244,285,N,,,,Y,30/08/2023 11:35,VWILSON,01/01/1900,0,,MBLACK,29/08/2023 11:47,,
************9143,38,Julie Cartridge,U,Julie Cartridge,10338,C,10338,15/08/2023,2023,5,15/08/2023,2023,5,2023,5,10.20,0.00,10.20,E,0%,2023,5,,,Parcelforce,Order Reference: PFW7259597 Date: 16/08/2023 Collection of Parcel from Civic Centre,Other,2200,43000,,,Resources,Resources,Y,29/08/2023 11:48,JCARTRIDGE,7243,7952,N,,,,Y,30/08/2023 11:35,VWILSON,15/08/2023,2023,5,JCARTRIDGE,15/08/2023 14:05,N,N
************9143,38,Julie Cartridge,U,Julie Cartridge,14550,B,14550,15/08/2023,0,,01/01/1900,0,,0,,10.20,,,,,0,,,,PARCELFORCE WL,,,,,,,,,Y,29/08/2023 11:48,JCARTRIDGE,7243,285,N,,,,Y,30/08/2023 11:35,VWILSON,01/01/1900,0,,MBLACK,29/08/2023 11:47,,
************9143,38,Julie Cartridge,U,Julie Cartridge,10335,C,10335,02/08/2023,2023,5,14/08/2023,2023,5,2023,5,24.00,4.00,20.00,B,20%,2023,5,,,Vital Code Ltd,VitalTax licence for Penny Jones,Other,6402,43502,,,Resources,Resources,Y,29/08/2023 11:48,JCARTRIDGE,7246,7949,N,,,,Y,30/08/2023 11:35,VWILSON,14/08/2023,2023,5,JCARTRIDGE,14/08/2023 09:56,N,N
************9143,38,Julie Cartridge,U,Julie Cartridge,14520,B,14520,02/08/2023,0,,01/01/1900,0,,0,,24.00,,,,,0,,,,VITALTAX,,,,,,,,,Y,29/08/2023 11:48,JCARTRIDGE,7246,285,N,,,,Y,30/08/2023 11:35,VWILSON,01/01/1900,0,,MBLACK,29/08/2023 11:47,,
************9143,38,Julie Cartridge,U,Julie Cartridge,10299,C,10299,25/07/2023,2023,4,25/07/2023,2023,4,2023,4,100.00,0.00,100.00,C,0%,2023,4,,,Eventbrite,"ED CPD Online: The future of Town Centres and the high street Tickets, Tue 3 Oct 2023 at 13:00 | Eventbrite - ticket for Mark Fenton",Other,6600,17010,,,Resources,Resources,Y,31/07/2023 09:54,JCARTRIDGE,7192,7915,N,,,,Y,10/08/2023 18:32,VWILSON,25/07/2023,2023,4,JCARTRIDGE,25/07/2023 15:20,N,N
************9143,38,Julie Cartridge,U,Julie Cartridge,14429,B,14429,25/07/2023,0,,01/01/1900,0,,0,,100.00,,,,,0,,,,EB IED CPD ONLINE THE,,,,,,,,,Y,31/07/2023 09:54,JCARTRIDGE,7192,284,N,,,,Y,10/08/2023 18:32,VWILSON,01/01/1900,0,,MBLACK,31/07/2023 09:53,,
************9143,38,Julie Cartridge,U,Julie Cartridge,10224,C,10224,03/07/2023,2023,4,05/07/2023,2023,4,2023,4,81.13,13.52,67.61,B,20%,2023,4,,,London Candles,Ivory Pillar Candles - case of 12 various sizes Ivory Pillar Candles set of 3 various sizes,Other,6412,40300,,,Resources,Resources,Y,31/07/2023 09:54,JCARTRIDGE,7191,7848,N,,,,Y,10/08/2023 18:32,VWILSON,05/07/2023,2023,4,JCARTRIDGE,05/07/2023 08:26,N,N
************9143,38,Julie Cartridge,U,Julie Cartridge,14449,B,14449,03/07/2023,0,,01/01/1900,0,,0,,81.13,,,,,0,,,,LONDON CAND,,,,,,,,,Y,31/07/2023 09:54,JCARTRIDGE,7191,284,N,,,,Y,10/08/2023 18:32,VWILSON,01/01/1900,0,,MBLACK,31/07/2023 09:53,,
************8657,39,Mrs C Crook,U,Carly Crook,10449,C,10449,22/09/2023,2023,6,19/09/2023,2023,6,2023,6,47.98,0.00,47.98,C,0%,2023,6,,,TRAINLINE,Tickets for Lee Rossall & Mary Grimshaw,Travel and Accommodation,6400,33000,,,Resources,Resources,Y,29/09/2023 09:38,HGRUNDY,7305,8028,N,,,,Y,03/10/2023 13:59,VWILSON,19/09/2023,2023,6,CCROOK,25/09/2023 15:06,N,N
************8657,39,Mrs C Crook,U,Carly Crook,14609,B,14609,22/09/2023,0,,01/01/1900,0,,0,,47.98,,,,,0,,,,TRAINLINE,,,,,,,,,Y,29/09/2023 09:38,HGRUNDY,7305,286,N,,,,Y,03/10/2023 13:59,VWILSON,01/01/1900,0,,MBLACK,29/09/2023 09:37,,
************8657,39,Mrs C Crook,U,Carly Crook,10450,C,10450,06/09/2023,2023,6,19/09/2023,2023,6,2023,6,46.61,7.11,39.50,B,20%,2023,6,Y,,www.therange.co.uk,18 x A4 photo frames for wyre business awards,Other,3740,46842,,,Resources,Resources,Y,29/09/2023 09:38,HGRUNDY,7304,8028,N,,,,Y,03/10/2023 13:59,VWILSON,19/09/2023,2023,6,CCROOK,25/09/2023 15:17,N,N
************8657,39,Mrs C Crook,U,Carly Crook,14602,B,14602,06/09/2023,0,,01/01/1900,0,,0,,46.61,,,,,0,,,,WWW.THERANGE.CO.UK,,,,,,,,,Y,29/09/2023 09:38,HGRUNDY,7304,286,N,,,,Y,03/10/2023 13:59,VWILSON,01/01/1900,0,,MBLACK,29/09/2023 09:37,,
************8657,39,Mrs C Crook,U,Carly Crook,10410,C,10410,01/09/2023,2023,6,01/09/2023,2023,6,2023,6,76.82,0.00,76.82,E,0%,2023,6,,,TRAINLINE,Tickets for Wayne Clare and Patrick Cantley 18/10/23 returning 19/10/23 to Birmingham,Travel and Accommodation,3341,17010,,,Resources,Resources,Y,29/09/2023 09:38,HGRUNDY,7303,7998,N,,,,Y,03/10/2023 13:59,VWILSON,01/09/2023,2023,6,CCROOK,01/09/2023 16:13,N,N
************8657,39,Mrs C Crook,U,Carly Crook,14589,B,14589,01/09/2023,0,,01/01/1900,0,,0,,76.82,,,,,0,,,,TRAINLINE,,,,,,,,,Y,29/09/2023 09:38,HGRUNDY,7303,286,N,,,,Y,03/10/2023 13:59,VWILSON,01/01/1900,0,,MBLACK,29/09/2023 09:37,,
************8657,39,Mrs C Crook,U,Carly Crook,10305,C,10305,31/07/2023,2023,4,31/07/2023,2023,4,2023,4,100.00,0.00,100.00,E,0%,2023,4,,,UCLAN.ac.uk,AAT Exam - Carly Crook. Level 3 - FAPS,Other,6402,17012,,,Resources,Resources,Y,29/08/2023 11:48,JCARTRIDGE,7247,7922,N,,,,Y,30/08/2023 11:35,VWILSON,31/07/2023,2023,4,CCROOK,31/07/2023 11:03,N,N
************8657,39,Mrs C Crook,U,Carly Crook,14506,B,14506,31/07/2023,0,,01/01/1900,0,,0,,100.00,,,,,0,,,,WWW.UCLAN.AU.UK,,,,,,,,,Y,29/08/2023 11:48,JCARTRIDGE,7247,285,N,,,,Y,30/08/2023 11:35,VWILSON,01/01/1900,0,,MBLACK,29/08/2023 11:47,,
************8657,39,Mrs C Crook,U,Carly Crook,10304,C,10304,17/07/2023,2023,4,31/07/2023,2023,4,2023,4,0.47,0.00,0.47,E,0%,2023,4,,,TRAINLINE,Trainline - Carl Green,Travel and Accommodation,6902,33000,,,Resources,Resources,Y,31/07/2023 10:00,CCROOK,7207,7921,N,,,,Y,31/07/2023 10:13,VWILSON,31/07/2023,2023,4,CCROOK,31/07/2023 10:00,N,N
************8657,39,Mrs C Crook,U,Carly Crook,10279,C,10279,17/07/2023,2023,4,17/07/2023,2023,4,2023,4,181.00,0.00,181.00,C,0%,2023,4,,,TRAINLINE,Trainline - Carl Green,Travel and Accommodation,6902,33000,,,Resources,Resources,Y,31/07/2023 10:00,CCROOK,7207,7903,N,,,,Y,31/07/2023 10:13,VWILSON,17/07/2023,2023,4,CCROOK,17/07/2023 11:51,N,N
************8657,39,Mrs C Crook,U,Carly Crook,14476,B,14476,17/07/2023,0,,01/01/1900,0,,0,,181.47,,,,,0,,,,TRAINLINE.COM,,,,,,,,,Y,31/07/2023 10:00,CCROOK,7207,284,N,,,,Y,31/07/2023 10:13,VWILSON,01/01/1900,0,,MBLACK,31/07/2023 09:53,,
************9358,40,Mrs Janet E Heald,U,Janet Heald,14613,B,14613,22/09/2023,0,,01/01/1900,0,,0,,3.00,,,,,0,,,,ASDA STOES LTD 5759,,,,,,,,,N,,,0,286,N,,,,N,,,01/01/1900,0,,MBLACK,29/09/2023 09:37,,
************9358,40,Mrs Janet E Heald,U,Janet Heald,14611,B,14611,22/09/2023,0,,01/01/1900,0,,0,,3.50,,,,,0,,,,ASDA STOES LTD 5759,,,,,,,,,N,,,0,286,N,,,,N,,,01/01/1900,0,,MBLACK,29/09/2023 09:37,,
************9358,40,Mrs Janet E Heald,U,Janet Heald,14614,B,14614,22/09/2023,0,,01/01/1900,0,,0,,6.90,,,,,0,,,,ASDA STOES LTD 5759,,,,,,,,,N,,,0,286,N,,,,N,,,01/01/1900,0,,MBLACK,29/09/2023 09:37,,
************9358,40,Mrs Janet E Heald,U,Janet Heald,14612,B,14612,22/09/2023,0,,01/01/1900,0,,0,,11.20,,,,,0,,,,ASDA STOES LTD 5759,,,,,,,,,N,,,0,286,N,,,,N,,,01/01/1900,0,,MBLACK,29/09/2023 09:37,,
************9358,40,Mrs Janet E Heald,U,Janet Heald,14615,B,14615,22/09/2023,0,,01/01/1900,0,,0,,19.55,,,,,0,,,,ASDA STOES LTD 5759,,,,,,,,,N,,,0,286,N,,,,N,,,01/01/1900,0,,MBLACK,29/09/2023 09:37,,
************9358,40,Mrs Janet E Heald,U,Janet Heald,14616,B,14616,22/09/2023,0,,01/01/1900,0,,0,,39.00,,,,,0,,,,ASDA STOES LTD 5759,,,,,,,,,N,,,0,286,N,,,,N,,,01/01/1900,0,,MBLACK,29/09/2023 09:37,,
************9358,40,Mrs Janet E Heald,U,Janet Heald,14610,B,14610,22/09/2023,0,,01/01/1900,0,,0,,39.90,,,,,0,,,,HOME BARGAINS FLEETWOO,,,,,,,,,N,,,0,286,N,,,,N,,,01/01/1900,0,,MBLACK,29/09/2023 09:37,,
************9358,40,Mrs Janet E Heald,U,Janet Heald,10416,C,10416,29/08/2023,2023,5,12/09/2023,2023,6,2023,6,8.70,0.00,8.70,D,0%,2023,5,,,asda,flowers wedding 29/8/23 MP,Other,3040,40102,,,People and Places,People and Places,A,29/09/2023 09:38,Auto,7306,8004,N,,,,N,,,,0,0,JHEALD,12/09/2023 11:14,N,N
************9358,40,Mrs Janet E Heald,U,Janet Heald,14565,B,14565,29/08/2023,0,,01/01/1900,0,,0,,8.70,,,,,0,,,,ASDA STOES LTD 5759,,,,,,,,,A,29/09/2023 09:38,Auto,7306,286,N,,,,N,,,01/01/1900,0,,MBLACK,29/09/2023 09:37,,
************9358,40,Mrs Janet E Heald,U,Janet Heald,10415,C,10415,25/08/2023,2023,5,12/09/2023,2023,6,2023,6,51.79,0.00,51.79,D,0%,2023,5,,,asda,various weddings 25 and 29 August 2023 MH,Other,3040,41001,,,People and Places,People and Places,Y,25/09/2023 10:17,JCARTRIDGE,7286,8004,N,,,,P,25/09/2023 10:17,JAROBINSON,,0,0,JHEALD,12/09/2023 11:13,N,N
************9358,40,Mrs Janet E Heald,U,Janet Heald,14501,B,14501,25/08/2023,0,,01/01/1900,0,,0,,51.79,,,,,0,,,,ASDA STOES LTD 5759,,,,,,,,,Y,25/09/2023 10:17,JCARTRIDGE,7286,285,N,,,,P,25/09/2023 10:17,JAROBINSON,01/01/1900,0,,MBLACK,29/08/2023 11:47,,
************9358,40,Mrs Janet E Heald,U,Janet Heald,10334,C,10334,14/08/2023,2023,5,11/08/2023,2023,5,2023,5,10.25,0.00,10.25,C,0%,2023,5,,,asda,"flowers, lemon",Other,3040,40100,,,People and Places,People and Places,Y,11/08/2023 15:05,JHEALD,7212,7948,N,,,,Y,11/08/2023 15:22,JAROBINSON,11/08/2023,2023,5,JHEALD,11/08/2023 15:04,N,N
************9358,40,Mrs Janet E Heald,U,Janet Heald,10330,C,10330,09/08/2023,2023,5,11/08/2023,2023,5,2023,5,5.00,0.00,5.00,C,0%,2023,5,,,tesco,flowers re 9/8/23,Legal Fees,3040,40100,,,People and Places,People and Places,A,29/08/2023 11:48,JCARTRIDGE,7249,7948,N,,,,P,,JAROBINSON,,0,0,JHEALD,11/08/2023 15:01,N,N
************9358,40,Mrs Janet E Heald,U,Janet Heald,10331,C,10331,09/08/2023,2023,5,11/08/2023,2023,5,2023,5,5.00,0.00,5.00,C,0%,2023,5,,,asda,flowers wedding MP 9/8/23,Other,3040,40100,,,People and Places,People and Places,A,29/08/2023 11:48,JCARTRIDGE,7250,7948,N,,,,P,,JAROBINSON,,0,0,JHEALD,11/08/2023 15:02,N,N
************9358,40,Mrs Janet E Heald,U,Janet Heald,14532,B,14532,09/08/2023,0,,01/01/1900,0,,0,,5.00,,,,,0,,,,ASDA STOES LTD 5759,,,,,,,,,A,29/08/2023 11:48,JCARTRIDGE,7249,285,N,,,,P,,JAROBINSON,01/01/1900,0,,MBLACK,29/08/2023 11:47,,
************9358,40,Mrs Janet E Heald,U,Janet Heald,14533,B,14533,09/08/2023,0,,01/01/1900,0,,0,,5.00,,,,,0,,,,TESCO STORES 5632,,,,,,,,,A,29/08/2023 11:48,JCARTRIDGE,7250,285,N,,,,P,,JAROBINSON,01/01/1900,0,,MBLACK,29/08/2023 11:47,,
************9358,40,Mrs Janet E Heald,U,Janet Heald,10332,C,10332,09/08/2023,2023,5,11/08/2023,2023,5,2023,5,5.37,0.00,5.37,C,0%,2023,5,,,aldi,flowers wedding MP 9/8/23,Other,3040,40100,,,People and Places,People and Places,A,29/08/2023 11:48,JCARTRIDGE,7251,7948,N,,,,P,,JAROBINSON,,0,0,JHEALD,11/08/2023 15:03,N,N
************9358,40,Mrs Janet E Heald,U,Janet Heald,14535,B,14535,09/08/2023,0,,01/01/1900,0,,0,,5.37,,,,,0,,,,ALDI 59 773,,,,,,,,,A,29/08/2023 11:48,JCARTRIDGE,7251,285,N,,,,P,,JAROBINSON,01/01/1900,0,,MBLACK,29/08/2023 11:47,,
************9358,40,Mrs Janet E Heald,U,Janet Heald,10333,C,10333,28/07/2023,2023,4,11/08/2023,2023,5,2023,5,19.05,0.00,19.05,C,0%,2023,5,,,asda,wedding MP 28/7/23,Other,3040,40100,,,People and Places,People and Places,A,29/08/2023 11:48,JCARTRIDGE,7248,7948,N,,,,P,,JAROBINSON,,0,0,JHEALD,11/08/2023 15:03,N,N
************9358,40,Mrs Janet E Heald,U,Janet Heald,14485,B,14485,28/07/2023,0,,01/01/1900,0,,0,,19.05,,,,,0,,,,ASDA STOES LTD 5759,,,,,,,,,A,29/08/2023 11:48,JCARTRIDGE,7248,285,N,,,,P,,JAROBINSON,01/01/1900,0,,MBLACK,29/08/2023 11:47,,
************9358,40,Mrs Janet E Heald,U,Janet Heald,10286,C,10286,14/07/2023,2023,4,17/07/2023,2023,4,2023,4,6.90,0.00,6.90,D,0%,2023,4,,,asda,ice MH wedding 14/7/23,Other,3040,41001,,,People and Places,People and Places,A,31/07/2023 09:54,JCARTRIDGE,7195,7904,N,,,,P,,JAROBINSON,,0,0,JHEALD,17/07/2023 12:05,N,N
************9358,40,Mrs Janet E Heald,U,Janet Heald,14468,B,14468,14/07/2023,0,,01/01/1900,0,,0,,6.90,,,,,0,,,,ASDA STOES LTD 5759,,,,,,,,,A,31/07/2023 09:54,JCARTRIDGE,7195,284,N,,,,P,,JAROBINSON,01/01/1900,0,,MBLACK,31/07/2023 09:53,,
************9358,40,Mrs Janet E Heald,U,Janet Heald,14469,B,14469,14/07/2023,0,,01/01/1900,0,,0,,10.25,,,,,0,,,,ASDA STOES LTD 5759,,,,,,,,,Y,11/08/2023 15:05,JHEALD,7212,284,N,,,,Y,11/08/2023 15:22,JAROBINSON,01/01/1900,0,,MBLACK,31/07/2023 09:53,,
************9358,40,Mrs Janet E Heald,U,Janet Heald,10287,C,10287,14/07/2023,2023,4,17/07/2023,2023,4,2023,4,45.00,0.00,45.00,D,0%,2023,4,,,asda,vodka wedding MH 14/7/23,Other,3040,41001,,,People and Places,People and Places,A,31/07/2023 09:54,JCARTRIDGE,7194,7904,N,,,,P,,JAROBINSON,,0,0,JHEALD,17/07/2023 12:06,N,N
************9358,40,Mrs Janet E Heald,U,Janet Heald,14467,B,14467,14/07/2023,0,,01/01/1900,0,,0,,45.00,,,,,0,,,,ASDA STOES LTD 5759,,,,,,,,,A,31/07/2023 09:54,JCARTRIDGE,7194,284,N,,,,P,,JAROBINSON,01/01/1900,0,,MBLACK,31/07/2023 09:53,,
************9358,40,Mrs Janet E Heald,U,Janet Heald,10285,C,10285,14/07/2023,2023,4,17/07/2023,2023,4,2023,4,90.00,0.00,90.00,D,0%,2023,4,,,asda,wedding MH 14/7/23 vodka,Other,3040,41001,,,People and Places,People and Places,A,31/07/2023 09:54,JCARTRIDGE,7193,7904,N,,,,P,,JAROBINSON,,0,0,JHEALD,17/07/2023 12:04,N,N
************9358,40,Mrs Janet E Heald,U,Janet Heald,14466,B,14466,14/07/2023,0,,01/01/1900,0,,0,,90.00,,,,,0,,,,ASDA STOES LTD 5759,,,,,,,,,A,31/07/2023 09:54,JCARTRIDGE,7193,284,N,,,,P,,JAROBINSON,01/01/1900,0,,MBLACK,31/07/2023 09:53,,
************9358,40,Mrs Janet E Heald,U,Janet Heald,10284,C,10284,08/07/2023,2023,4,17/07/2023,2023,4,2023,4,11.45,0.00,11.45,D,0%,2023,4,,,asda,foil and food bags,Other,3040,41002,,,People and Places,People and Places,A,31/07/2023 09:54,JCARTRIDGE,7196,7904,N,,,,P,,JAROBINSON,,0,0,JHEALD,17/07/2023 12:04,N,N
************9358,40,Mrs Janet E Heald,U,Janet Heald,14461,B,14461,08/07/2023,0,,01/01/1900,0,,0,,11.45,,,,,0,,,,ASDA STOES LTD 5759,,,,,,,,,A,31/07/2023 09:54,JCARTRIDGE,7196,284,N,,,,P,,JAROBINSON,01/01/1900,0,,MBLACK,31/07/2023 09:53,,
************9358,40,Mrs Janet E Heald,U,Janet Heald,10281,C,10281,06/07/2023,2023,4,17/07/2023,2023,4,2023,4,2.00,0.00,2.00,D,0%,2023,4,,,asda,sponges bbc 6/7/23 MH,Other,3040,40501,,,People and Places,People and Places,A,31/07/2023 09:54,JCARTRIDGE,7199,7904,N,,,,P,,JAROBINSON,,0,0,JHEALD,17/07/2023 12:02,N,N
************9358,40,Mrs Janet E Heald,U,Janet Heald,14457,B,14457,06/07/2023,0,,01/01/1900,0,,0,,2.00,,,,,0,,,,ASDA STOES LTD 5759,,,,,,,,,A,31/07/2023 09:54,JCARTRIDGE,7199,284,N,,,,P,,JAROBINSON,01/01/1900,0,,MBLACK,31/07/2023 09:53,,
************9358,40,Mrs Janet E Heald,U,Janet Heald,10282,C,10282,06/07/2023,2023,4,17/07/2023,2023,4,2023,4,3.40,0.00,3.40,D,0%,2023,4,,,asda,soya drink bbc 6/7/23 MH,Other,3040,41100,,,People and Places,People and Places,A,31/07/2023 09:54,JCARTRIDGE,7197,7904,N,,,,P,,JAROBINSON,,0,0,JHEALD,17/07/2023 12:02,N,N
************9358,40,Mrs Janet E Heald,U,Janet Heald,14455,B,14455,06/07/2023,0,,01/01/1900,0,,0,,3.40,,,,,0,,,,ASDA STOES LTD 5759,,,,,,,,,A,31/07/2023 09:54,JCARTRIDGE,7197,284,N,,,,P,,JAROBINSON,01/01/1900,0,,MBLACK,31/07/2023 09:53,,
************9358,40,Mrs Janet E Heald,U,Janet Heald,10283,C,10283,06/07/2023,2023,4,17/07/2023,2023,4,2023,4,29.24,0.00,29.24,D,0%,2023,4,,,asda,bbc MH 6/7/23 various,Other,3040,41100,,,People and Places,People and Places,A,31/07/2023 09:54,JCARTRIDGE,7198,7904,N,,,,P,,JAROBINSON,,0,0,JHEALD,17/07/2023 12:03,N,N
************9358,40,Mrs Janet E Heald,U,Janet Heald,14456,B,14456,06/07/2023,0,,01/01/1900,0,,0,,29.24,,,,,0,,,,ASDA STOES LTD 5759,,,,,,,,,A,31/07/2023 09:54,JCARTRIDGE,7198,284,N,,,,P,,JAROBINSON,01/01/1900,0,,MBLACK,31/07/2023 09:53,,
************9358,40,Mrs Janet E Heald,U,Janet Heald,10280,C,10280,05/07/2023,2023,4,17/07/2023,2023,4,2023,4,13.95,0.00,13.95,D,0%,2023,4,,,HOME BARGAINS,toiletries and cleaning products BBC 6/7/23 MH,Other,3040,40501,,,People and Places,People and Places,A,31/07/2023 09:54,JCARTRIDGE,7200,7904,N,,,,P,,JAROBINSON,,0,0,JHEALD,17/07/2023 12:01,N,N
************9358,40,Mrs Janet E Heald,U,Janet Heald,14450,B,14450,05/07/2023,0,,01/01/1900,0,,0,,13.95,,,,,0,,,,HOME BARGAINS FLEETWOO,,,,,,,,,A,31/07/2023 09:54,JCARTRIDGE,7200,284,N,,,,P,,JAROBINSON,01/01/1900,0,,MBLACK,31/07/2023 09:53,,
************1764,42,Jordan Cartmell,U,Jordan Cartmell,14617,B,14617,22/09/2023,0,,01/01/1900,0,,0,,376.80,,,,,0,,,,SP FLIC WEBSHOP,,,,,,,,,N,,,0,286,N,,,,N,,,01/01/1900,0,,MBLACK,29/09/2023 09:37,,
************1764,42,Jordan Cartmell,U,Jordan Cartmell,14584,B,14584,19/09/2023,0,,01/01/1900,0,,0,,139.91,,,,,0,,,,KENABLE.CO.UK,,,,,,,,,N,,,0,286,N,,,,N,,,01/01/1900,0,,MBLACK,29/09/2023 09:37,,
************1764,42,Jordan Cartmell,U,Jordan Cartmell,14572,B,14572,10/09/2023,0,,01/01/1900,0,,0,,7.83,,,,,0,,,,NAME-CHEAP.COM 4VK7HW,,,,,,,,,N,,,0,286,N,,,,N,,,01/01/1900,0,,MBLACK,29/09/2023 09:37,,
************1764,42,Jordan Cartmell,U,Jordan Cartmell,14594,B,14594,04/09/2023,0,,01/01/1900,0,,0,,7.75,,,,,0,,,,NAME-CHEAP.COM XSQRIU,,,,,,,,,N,,,0,286,N,,,,N,,,01/01/1900,0,,MBLACK,29/09/2023 09:37,,
************1764,42,Jordan Cartmell,U,Jordan Cartmell,14593,B,14593,01/09/2023,0,,01/01/1900,0,,0,,10.24,,,,,0,,,,CLOUD VXSLKZ,,,,,,,,,N,,,0,286,N,,,,N,,,01/01/1900,0,,MBLACK,29/09/2023 09:37,,
************1764,42,Jordan Cartmell,U,Jordan Cartmell,10444,C,10444,25/08/2023,2023,5,21/09/2023,2023,6,2023,6,221.75,36.96,184.79,B,20%,2023,6,,,Kenable,20 x DisplayPort Plug to DVI-D 24 1 Male Plug Digital Video Cable GOLD 2m. 20 x DisplayPort Plug to HDMI Male Plug Display/Monitor/TV Cable 2m. 20 x DisplayPort v1.4 HBR3 8K 60Hz 4K 120Hz MST 32.4G HDR Cable Gold 2m.,Other,6404,43500,HW007,,Resources,Resources,Y,21/09/2023 11:22,JCARTMELL,7282,8033,N,,,,Y,21/09/2023 12:12,LBROPHY,21/09/2023,2023,6,JCARTMELL,21/09/2023 11:21,N,N
************1764,42,Jordan Cartmell,U,Jordan Cartmell,14504,B,14504,25/08/2023,0,,01/01/1900,0,,0,,221.75,,,,,0,,,,KENABLE.CO.UK,,,,,,,,,Y,21/09/2023 11:22,JCARTMELL,7282,285,N,,,,Y,21/09/2023 12:12,LBROPHY,01/01/1900,0,,MBLACK,29/08/2023 11:47,,
************1764,42,Jordan Cartmell,U,Jordan Cartmell,10447,C,10447,22/08/2023,2023,5,21/09/2023,2023,6,2023,6,233.27,38.88,194.39,B,20%,2023,6,,,BiGDUG Ltd,Zinc Wire Mesh Six Door Locker | 1980h X 450w X 450d.,Other,6404,40300,,,Resources,Resources,Y,21/09/2023 11:48,JCARTMELL,7285,8036,N,,,,Y,21/09/2023 12:12,LBROPHY,21/09/2023,2023,6,JCARTMELL,21/09/2023 11:48,N,N
************1764,42,Jordan Cartmell,U,Jordan Cartmell,14491,B,14491,22/08/2023,0,,01/01/1900,0,,0,,233.27,,,,,0,,,,BIGDUG LIMITED,,,,,,,,,Y,21/09/2023 11:48,JCARTMELL,7285,285,N,,,,Y,21/09/2023 12:12,LBROPHY,01/01/1900,0,,MBLACK,29/08/2023 11:47,,
************1764,42,Jordan Cartmell,U,Jordan Cartmell,10446,C,10446,04/08/2023,2023,5,21/09/2023,2023,6,2023,6,7.70,1.28,6.42,B,20%,2023,6,,,Namecheap Inc,One year domain renewal for wyremarkets.co.uk,Other,6404,43604,43710,,Resources,Resources,Y,21/09/2023 11:45,JCARTMELL,7284,8035,N,,,,Y,21/09/2023 12:12,LBROPHY,21/09/2023,2023,6,JCARTMELL,21/09/2023 11:44,N,N
************1764,42,Jordan Cartmell,U,Jordan Cartmell,14526,B,14526,04/08/2023,0,,01/01/1900,0,,0,,7.70,,,,,0,,,,NAME-CHEAP.COM PY1WIK,,,,,,,,,Y,21/09/2023 11:45,JCARTMELL,7284,285,N,,,,Y,21/09/2023 12:12,LBROPHY,01/01/1900,0,,MBLACK,29/08/2023 11:47,,
************1764,42,Jordan Cartmell,U,Jordan Cartmell,10445,C,10445,01/08/2023,2023,5,21/09/2023,2023,6,2023,6,11.07,1.85,9.22,B,20%,2023,6,,,Google Inc,Google search console invoice for July 2023 usage.,Other,6404,43604,43710,,Resources,Resources,Y,21/09/2023 11:34,JCARTMELL,7283,8034,N,,,,Y,21/09/2023 12:12,LBROPHY,21/09/2023,2023,6,JCARTMELL,21/09/2023 11:32,N,N
************1764,42,Jordan Cartmell,U,Jordan Cartmell,14516,B,14516,01/08/2023,0,,01/01/1900,0,,0,,11.07,,,,,0,,,,CLOUD H2ZK7T,,,,,,,,,Y,21/09/2023 11:34,JCARTMELL,7283,285,N,,,,Y,21/09/2023 12:12,LBROPHY,01/01/1900,0,,MBLACK,29/08/2023 11:47,,
************1764,42,Jordan Cartmell,U,Jordan Cartmell,10442,C,10442,31/07/2023,2023,4,21/09/2023,2023,6,2023,6,122.54,20.42,102.12,B,20%,2023,6,,,Essanet Ltd,"10 x CAT6a Shielded Black 3m Ethernet Patch Cable (F/FTP, LSZH, Low Smoke). 6 x CAT6a Shielded Black 10m Ethernet Patch Cable (F/FTP, LSZH, Low Smoke). 2 x CAT6a Shielded Black 0.5m Ethernet Patch Cable, Ten Pack (F/FTP, LSZH, Low Smoke). 2 x CAT6a Shield",Other,6404,43500,HW007,,Resources,Resources,Y,21/09/2023 11:10,JCARTMELL,7280,8031,N,,,,Y,21/09/2023 12:12,LBROPHY,21/09/2023,2023,6,JCARTMELL,21/09/2023 11:10,N,N
************1764,42,Jordan Cartmell,U,Jordan Cartmell,14508,B,14508,31/07/2023,0,,01/01/1900,0,,0,,122.54,,,,,0,,,,WWW.BROADBANDBUYER.CO.,,,,,,,,,Y,21/09/2023 11:10,JCARTMELL,7280,285,N,,,,Y,21/09/2023 12:12,LBROPHY,01/01/1900,0,,MBLACK,29/08/2023 11:47,,
************1764,42,Jordan Cartmell,U,Jordan Cartmell,10443,C,10443,31/07/2023,2023,4,21/09/2023,2023,6,2023,6,123.95,20.66,103.29,B,20%,2023,6,,,Kenable,10 x DisplayPort Plug to DVI-D 24 1 Male Plug Digital Video Cable GOLD 2m. 10 x DisplayPort v1.4 HBR3 8K 60Hz 4K 120Hz MST 32.4G HDR Cable Gold 1m. 10 x DisplayPort v1.4 HBR3 8K 60Hz 4K 120Hz MST 32.4G HDR Cable Gold 2m. 10 x Power Cord - UK Plug to C5 Cl,Other,6404,43500,HW007,,Resources,Resources,Y,21/09/2023 11:17,JCARTMELL,7281,8032,N,,,,Y,21/09/2023 12:12,LBROPHY,21/09/2023,2023,6,JCARTMELL,21/09/2023 11:16,N,N
************1764,42,Jordan Cartmell,U,Jordan Cartmell,14507,B,14507,31/07/2023,0,,01/01/1900,0,,0,,123.95,,,,,0,,,,KENABLE.CO.UK,,,,,,,,,Y,21/09/2023 11:17,JCARTMELL,7281,285,N,,,,Y,21/09/2023 12:12,LBROPHY,01/01/1900,0,,MBLACK,29/08/2023 11:47,,
************1764,42,Jordan Cartmell,U,Jordan Cartmell,10390,C,10390,22/07/2023,2023,4,29/08/2023,2023,5,2023,5,15.21,2.54,12.67,B,20%,2023,5,,,Namecheap Inc,Domain name renewal for one year for memorialparkfleetwood.co.uk and wyreestuarycountrypark.co.uk,Other,6404,43604,43735,,Resources,Resources,Y,29/08/2023 18:48,JCARTMELL,7265,7978,N,,,,Y,21/09/2023 12:12,LBROPHY,29/08/2023,2023,5,JCARTMELL,29/08/2023 18:48,N,N
************1764,42,Jordan Cartmell,U,Jordan Cartmell,14424,B,14424,22/07/2023,0,,01/01/1900,0,,0,,15.21,,,,,0,,,,NAME-CHEAP.COM 93EB22,,,,,,,,,Y,29/08/2023 18:48,JCARTMELL,7265,284,N,,,,Y,21/09/2023 12:12,LBROPHY,01/01/1900,0,,MBLACK,31/07/2023 09:53,,
************1764,42,Jordan Cartmell,U,Jordan Cartmell,10388,C,10388,03/07/2023,2023,4,29/08/2023,2023,5,2023,5,96.29,16.05,80.24,B,20%,2023,5,,,Handy Brand UK Ltd,2000 x Landscape Sequential Number From WBC02001 Sequential Number To WBC04000. Sticker Size: 50mm x 16mm,Other,6404,43501,,,Resources,Resources,Y,29/08/2023 18:33,JCARTMELL,7263,7976,N,,,,Y,21/09/2023 12:12,LBROPHY,29/08/2023,2023,5,JCARTMELL,29/08/2023 18:32,N,N
************1764,42,Jordan Cartmell,U,Jordan Cartmell,14444,B,14444,03/07/2023,0,,01/01/1900,0,,0,,96.29,,,,,0,,,,HANDY LABELS,,,,,,,,,Y,29/08/2023 18:33,JCARTMELL,7263,284,N,,,,Y,21/09/2023 12:12,LBROPHY,01/01/1900,0,,MBLACK,31/07/2023 09:53,,
************1764,42,Jordan Cartmell,U,Jordan Cartmell,10389,C,10389,03/07/2023,2023,4,29/08/2023,2023,5,2023,5,107.27,17.88,89.39,B,20%,2023,5,,,Handy Brand UK Ltd,2000 x Rectangle White Matt Vinyl Adhesive Landscape stickers. Sequential Number From WBC02001 Sequential Number To WBC04000 Sticker Size: 50mm x 16mm,Other,6404,43501,,,Resources,Resources,Y,29/08/2023 18:38,JCARTMELL,7264,7977,N,,,,Y,21/09/2023 12:12,LBROPHY,29/08/2023,2023,5,JCARTMELL,29/08/2023 18:38,N,N
************1764,42,Jordan Cartmell,U,Jordan Cartmell,14443,B,14443,03/07/2023,0,,01/01/1900,0,,0,,107.27,,,,,0,,,,HANDY LABELS,,,,,,,,,Y,29/08/2023 18:38,JCARTMELL,7264,284,N,,,,Y,21/09/2023 12:12,LBROPHY,01/01/1900,0,,MBLACK,31/07/2023 09:53,,
************1764,42,Jordan Cartmell,U,Jordan Cartmell,10387,C,10387,01/07/2023,2023,4,29/08/2023,2023,5,2023,5,12.60,0.00,12.60,B,20%,2023,5,,,Google Inc,Monthly charge for Google search console API.,Other,6404,43604,43710,,Resources,Resources,Y,29/08/2023 18:25,JCARTMELL,7262,7975,N,,,,Y,21/09/2023 12:12,LBROPHY,29/08/2023,2023,5,JCARTMELL,29/08/2023 18:24,N,N
************1764,42,Jordan Cartmell,U,Jordan Cartmell,14440,B,14440,01/07/2023,0,,01/01/1900,0,,0,,12.60,,,,,0,,,,CLOUD SKR5SX,,,,,,,,,Y,29/08/2023 18:25,JCARTMELL,7262,284,N,,,,Y,21/09/2023 12:12,LBROPHY,01/01/1900,0,,MBLACK,31/07/2023 09:53,,
************5315,44,Mrs Tracy J Waistle,U,Tracey Waistle,14603,B,14603,07/09/2023,0,,01/01/1900,0,,0,,15.80,,,,,0,,,,ASDA STOES LTD 5759,,,,,,,,,N,,,0,286,N,,,,N,,,01/01/1900,0,,MBLACK,29/09/2023 09:37,,
************5315,44,Mrs Tracy J Waistle,U,Tracey Waistle,10435,C,10435,07/09/2023,2023,6,14/09/2023,2023,6,2023,6,16.80,2.80,14.00,B,20%,2023,6,,GB362012792,Asda,Refreshments Receipt,Other,3420,46849,,,People and Places,People and Places,N,,,0,8023,N,,,,N,,,,0,0,TWAISTLE,14/09/2023 15:21,N,N
************5315,44,Mrs Tracy J Waistle,U,Tracey Waistle,10434,C,10434,01/09/2023,2023,6,14/09/2023,2023,6,2023,6,154.50,24.67,129.83,B,20%,2023,6,Y,GB974959838,Trade Counter Direct,Trailer Lights Order no: #20076798,Other,6953,30507,T994,,People and Places,People and Places,A,29/09/2023 09:38,HGRUNDY,7307,8022,N,,,,P,,GSCOTT,,0,0,TWAISTLE,14/09/2023 15:12,N,N
************5315,44,Mrs Tracy J Waistle,U,Tracey Waistle,14595,B,14595,01/09/2023,0,,01/01/1900,0,,0,,154.50,,,,,0,,,,SQ TRADE COUNTER DIRE,,,,,,,,,A,29/09/2023 09:38,HGRUNDY,7307,286,N,,,,P,,GSCOTT,01/01/1900,0,,MBLACK,29/09/2023 09:37,,
************5315,44,Mrs Tracy J Waistle,U,Tracey Waistle,10407,C,10407,24/08/2023,2023,5,01/09/2023,2023,6,2023,6,33.90,5.65,28.25,B,20%,2023,6,Y,GB136780105,Accu Limited,Materials Invoice no: IN956804,Other,3260,42002,,,People and Places,People and Places,Y,01/09/2023 15:51,TWAISTLE,7268,7995,N,,,,P,01/09/2023 15:51,GSCOTT,,0,0,TWAISTLE,01/09/2023 15:41,N,N
************5315,44,Mrs Tracy J Waistle,U,Tracey Waistle,14500,B,14500,24/08/2023,0,,01/01/1900,0,,0,,33.90,,,,,0,,,,ACCULIMITED,,,,,,,,,Y,01/09/2023 15:51,TWAISTLE,7268,285,N,,,,P,01/09/2023 15:51,GSCOTT,01/01/1900,0,,MBLACK,29/08/2023 11:47,,
************5315,44,Mrs Tracy J Waistle,U,Tracey Waistle,10408,C,10408,24/08/2023,2023,5,01/09/2023,2023,6,2023,6,37.50,0.00,37.50,D,0%,2023,6,,,Tavcom Training,Body Worn web training Receipt no: #1426-1598,Other,6905,17010,,,People and Places,People and Places,Y,01/09/2023 15:51,TWAISTLE,7268,7996,N,,,,P,01/09/2023 15:51,GSCOTT,,0,0,TWAISTLE,01/09/2023 15:46,N,N
************5315,44,Mrs Tracy J Waistle,U,Tracey Waistle,10409,C,10409,24/08/2023,2023,5,01/09/2023,2023,6,2023,6,37.50,0.00,37.50,D,0%,2023,6,,,Tavcom Training,Body Worn web training Receipt no: #1428-4167,Other,6905,17010,,,People and Places,People and Places,Y,01/09/2023 15:51,TWAISTLE,7268,7997,N,,,,P,01/09/2023 15:51,GSCOTT,,0,0,TWAISTLE,01/09/2023 15:48,N,N
************5315,44,Mrs Tracy J Waistle,U,Tracey Waistle,14498,B,14498,24/08/2023,0,,01/01/1900,0,,0,,37.50,,,,,0,,,,TAVCOM TRAINING,,,,,,,,,Y,01/09/2023 15:51,TWAISTLE,7268,285,N,,,,P,01/09/2023 15:51,GSCOTT,01/01/1900,0,,MBLACK,29/08/2023 11:47,,
************5315,44,Mrs Tracy J Waistle,U,Tracey Waistle,14499,B,14499,24/08/2023,0,,01/01/1900,0,,0,,37.50,,,,,0,,,,TAVCOM TRAINING,,,,,,,,,Y,01/09/2023 15:51,TWAISTLE,7268,285,N,,,,P,01/09/2023 15:51,GSCOTT,01/01/1900,0,,MBLACK,29/08/2023 11:47,,
************5315,44,Mrs Tracy J Waistle,U,Tracey Waistle,10406,C,10406,23/08/2023,2023,5,01/09/2023,2023,6,2023,6,27.86,0.00,27.86,C,0%,2023,6,,791726106,Trainline Group,Train tickets Anita Fish Invoice no: 416311719888,Other,6201,33000,,,People and Places,People and Places,Y,01/09/2023 15:51,TWAISTLE,7268,7994,N,,,,P,01/09/2023 15:51,GSCOTT,,0,0,TWAISTLE,01/09/2023 15:38,N,N
************5315,44,Mrs Tracy J Waistle,U,Tracey Waistle,14494,B,14494,23/08/2023,0,,01/01/1900,0,,0,,27.86,,,,,0,,,,TRAINLINE,,,,,,,,,Y,01/09/2023 15:51,TWAISTLE,7268,285,N,,,,P,01/09/2023 15:51,GSCOTT,01/01/1900,0,,MBLACK,29/08/2023 11:47,,
************5315,44,Mrs Tracy J Waistle,U,Tracey Waistle,10405,C,10405,17/08/2023,2023,5,01/09/2023,2023,6,2023,6,322.50,0.00,322.50,D,0%,2023,6,,,DVLA,DVLA Vehicle Tax Application ref: 1239-4922-1469-3152,Other,6953,30502,V95,,People and Places,People and Places,Y,01/09/2023 15:51,TWAISTLE,7268,7993,N,,,,P,01/09/2023 15:51,GSCOTT,,0,0,TWAISTLE,01/09/2023 15:31,N,N
************5315,44,Mrs Tracy J Waistle,U,Tracey Waistle,14560,B,14560,17/08/2023,0,,01/01/1900,0,,0,,322.50,,,,,0,,,,DVLA VEHICLE TAX,,,,,,,,,Y,01/09/2023 15:51,TWAISTLE,7268,285,N,,,,P,01/09/2023 15:51,GSCOTT,01/01/1900,0,,MBLACK,29/08/2023 11:47,,
************5315,44,Mrs Tracy J Waistle,U,Tracey Waistle,10402,C,10402,11/08/2023,2023,5,01/09/2023,2023,6,2023,6,42.13,7.02,35.11,B,20%,2023,6,Y,GB722112783,Workwear Express,Trousers Invoice no: INV1646103,Other,6953,41600,,,People and Places,People and Places,Y,01/09/2023 15:51,TWAISTLE,7268,7990,N,,,,P,01/09/2023 15:51,GSCOTT,,0,0,TWAISTLE,01/09/2023 15:14,N,N
************5315,44,Mrs Tracy J Waistle,U,Tracey Waistle,14542,B,14542,11/08/2023,0,,01/01/1900,0,,0,,42.13,,,,,0,,,,WORKWEAR EXPRESS,,,,,,,,,Y,01/09/2023 15:51,TWAISTLE,7268,285,N,,,,P,01/09/2023 15:51,GSCOTT,01/01/1900,0,,MBLACK,29/08/2023 11:47,,
************5315,44,Mrs Tracy J Waistle,U,Tracey Waistle,10403,C,10403,11/08/2023,2023,5,01/09/2023,2023,6,2023,6,50.82,8.47,42.35,B,20%,2023,6,Y,GB132120183,Progreen,Valve Invoice no: INV171528,Other,6953,42002,,,People and Places,People and Places,Y,01/09/2023 15:51,TWAISTLE,7268,7991,N,,,,P,01/09/2023 15:51,GSCOTT,,0,0,TWAISTLE,01/09/2023 15:21,N,N
************5315,44,Mrs Tracy J Waistle,U,Tracey Waistle,14544,B,14544,11/08/2023,0,,01/01/1900,0,,0,,50.82,,,,,0,,,,PROGREEN,,,,,,,,,Y,01/09/2023 15:51,TWAISTLE,7268,285,N,,,,P,01/09/2023 15:51,GSCOTT,01/01/1900,0,,MBLACK,29/08/2023 11:47,,
************5315,44,Mrs Tracy J Waistle,U,Tracey Waistle,10404,C,10404,11/08/2023,2023,5,01/09/2023,2023,6,2023,6,60.07,9.02,51.05,B,20%,2023,6,Y,144991246,Safetybootsuk,Safety Boots Order no: A1411876,Other,6953,41600,,,People and Places,People and Places,Y,01/09/2023 15:51,TWAISTLE,7268,7992,N,,,,P,01/09/2023 15:51,GSCOTT,,0,0,TWAISTLE,01/09/2023 15:29,N,N
************5315,44,Mrs Tracy J Waistle,U,Tracey Waistle,14543,B,14543,11/08/2023,0,,01/01/1900,0,,0,,60.07,,,,,0,,,,SAFETYBOOTSUK,,,,,,,,,Y,01/09/2023 15:51,TWAISTLE,7268,285,N,,,,P,01/09/2023 15:51,GSCOTT,01/01/1900,0,,MBLACK,29/08/2023 11:47,,
************5315,44,Mrs Tracy J Waistle,U,Tracey Waistle,10401,C,10401,02/08/2023,2023,5,01/09/2023,2023,6,2023,6,370.80,61.80,309.00,B,20%,2023,6,Y,156200204,M J TEALE PLANT HIRE LTD,Top soil Invoice no: INV-9490,Other,6953,42002,,,People and Places,People and Places,Y,01/09/2023 15:51,TWAISTLE,7268,7989,N,,,,P,01/09/2023 15:51,GSCOTT,,0,0,TWAISTLE,01/09/2023 15:12,N,N
************5315,44,Mrs Tracy J Waistle,U,Tracey Waistle,14522,B,14522,02/08/2023,0,,01/01/1900,0,,0,,370.80,,,,,0,,,,M J TEALE PLANT HIRE L,,,,,,,,,Y,01/09/2023 15:51,TWAISTLE,7268,285,N,,,,P,01/09/2023 15:51,GSCOTT,01/01/1900,0,,MBLACK,29/08/2023 11:47,,
************5315,44,Mrs Tracy J Waistle,U,Tracey Waistle,10400,C,10400,01/08/2023,2023,5,01/09/2023,2023,6,2023,6,150.45,25.07,125.38,B,20%,2023,6,Y,GB375522052,Baker Ross,Goods for Events Georgia Luckett Invoice no: WEB14778685,Other,3115,46522,,,People and Places,People and Places,Y,01/09/2023 15:51,TWAISTLE,7268,7988,N,,,,P,01/09/2023 15:51,GSCOTT,,0,0,TWAISTLE,01/09/2023 15:10,N,N
************5315,44,Mrs Tracy J Waistle,U,Tracey Waistle,14517,B,14517,01/08/2023,0,,01/01/1900,0,,0,,150.45,,,,,0,,,,BAKER ROSS,,,,,,,,,Y,01/09/2023 15:51,TWAISTLE,7268,285,N,,,,P,01/09/2023 15:51,GSCOTT,01/01/1900,0,,MBLACK,29/08/2023 11:47,,
************5315,44,Mrs Tracy J Waistle,U,Tracey Waistle,10399,C,10399,27/07/2023,2023,4,01/09/2023,2023,6,2023,6,280.99,46.83,234.16,B,20%,2023,6,Y,GB103973325,MH Star Uk Ltd - Aosom,Storage shed Cottam Hall growing area Order no: #26800045370,Other,8900,4020,SPF03,,People and Places,People and Places,Y,01/09/2023 15:51,TWAISTLE,7268,7987,N,,,,P,01/09/2023 15:51,GSCOTT,,0,0,TWAISTLE,01/09/2023 14:20,N,N
************5315,44,Mrs Tracy J Waistle,U,Tracey Waistle,14433,B,14433,27/07/2023,0,,01/01/1900,0,,0,,280.99,,,,,0,,,,MH STAR UK LTD,,,,,,,,,Y,01/09/2023 15:51,TWAISTLE,7268,284,N,,,,P,01/09/2023 15:51,GSCOTT,01/01/1900,0,,MBLACK,31/07/2023 09:53,,
************5315,44,Mrs Tracy J Waistle,U,Tracey Waistle,10398,C,10398,19/07/2023,2023,4,01/09/2023,2023,6,2023,6,21.95,3.66,18.29,B,20%,2023,6,,GB974990653,Hobbycraft,Craft sticks Order no: W15318826,Other,3115,46522,,,People and Places,People and Places,Y,01/09/2023 15:51,TWAISTLE,7268,7986,N,,,,P,01/09/2023 15:51,GSCOTT,,0,0,TWAISTLE,01/09/2023 14:12,N,N
************5315,44,Mrs Tracy J Waistle,U,Tracey Waistle,14481,B,14481,19/07/2023,0,,01/01/1900,0,,0,,21.95,,,,,0,,,,HOBBYCRAFT TRADING LIM,,,,,,,,,Y,01/09/2023 15:51,TWAISTLE,7268,284,N,,,,P,01/09/2023 15:51,GSCOTT,01/01/1900,0,,MBLACK,31/07/2023 09:53,,
************5315,44,Mrs Tracy J Waistle,U,Tracey Waistle,10303,C,10303,14/07/2023,2023,4,26/07/2023,2023,4,2023,4,16.19,0.00,16.19,C,0%,2023,4,,791726106,Trainline Group,Train tickets Anita fish Invoice no: 353174849074,Other,6201,33000,,,People and Places,People and Places,Y,31/07/2023 09:54,JCARTRIDGE,7204,7919,N,,,,Y,31/07/2023 15:30,GSCOTT,26/07/2023,2023,4,TWAISTLE,26/07/2023 13:37,N,N
************5315,44,Mrs Tracy J Waistle,U,Tracey Waistle,14471,B,14471,14/07/2023,0,,01/01/1900,0,,0,,16.19,,,,,0,,,,TRAINLINE,,,,,,,,,Y,31/07/2023 09:54,JCARTRIDGE,7204,284,N,,,,Y,31/07/2023 15:30,GSCOTT,01/01/1900,0,,MBLACK,31/07/2023 09:53,,
************5315,44,Mrs Tracy J Waistle,U,Tracey Waistle,10300,C,10300,14/07/2023,2023,4,26/07/2023,2023,4,2023,4,35.00,0.00,35.00,D,0%,2023,4,,,Asda,Refreshments for event Receipt,Other,3420,46849,,,People and Places,People and Places,Y,31/07/2023 09:54,JCARTRIDGE,7206,7916,N,,,,Y,31/07/2023 15:30,GSCOTT,26/07/2023,2023,4,TWAISTLE,26/07/2023 09:06,N,N
************5315,44,Mrs Tracy J Waistle,U,Tracey Waistle,14473,B,14473,14/07/2023,0,,01/01/1900,0,,0,,35.00,,,,,0,,,,ASDA STOES LTD 5759,,,,,,,,,Y,31/07/2023 09:54,JCARTRIDGE,7206,284,N,,,,Y,31/07/2023 15:30,GSCOTT,01/01/1900,0,,MBLACK,31/07/2023 09:53,,
************5315,44,Mrs Tracy J Waistle,U,Tracey Waistle,10301,C,10301,14/07/2023,2023,4,26/07/2023,2023,4,2023,4,126.54,21.09,105.45,B,20%,2023,4,Y,GB100556712,L&S Engineers,Strimmer line Order no: SO02261208,Other,3420,46849,,,People and Places,People and Places,Y,31/07/2023 09:54,JCARTRIDGE,7205,7917,N,,,,Y,31/07/2023 15:30,GSCOTT,26/07/2023,2023,4,TWAISTLE,26/07/2023 09:13,N,N
************5315,44,Mrs Tracy J Waistle,U,Tracey Waistle,14472,B,14472,14/07/2023,0,,01/01/1900,0,,0,,126.54,,,,,0,,,,WWW.LSENGINEERS.CO.UK,,,,,,,,,Y,31/07/2023 09:54,JCARTRIDGE,7205,284,N,,,,Y,31/07/2023 15:30,GSCOTT,01/01/1900,0,,MBLACK,31/07/2023 09:53,,
************5315,44,Mrs Tracy J Waistle,U,Tracey Waistle,10253,C,10253,11/07/2023,2023,4,13/07/2023,2023,4,2023,4,39.98,0.00,39.98,D,0%,2023,4,,733097336,The Plant Place,Planted containers Poulton Cemetery Receipt,Other,3220,28003,,,People and Places,People and Places,Y,31/07/2023 09:54,JCARTRIDGE,7203,7880,N,,,,Y,31/07/2023 15:30,GSCOTT,13/07/2023,2023,4,TWAISTLE,13/07/2023 12:49,N,N
************5315,44,Mrs Tracy J Waistle,U,Tracey Waistle,14463,B,14463,11/07/2023,0,,01/01/1900,0,,0,,39.98,,,,,0,,,,THE PLANT PLACE,,,,,,,,,Y,31/07/2023 09:54,JCARTRIDGE,7203,284,N,,,,Y,31/07/2023 15:30,GSCOTT,01/01/1900,0,,MBLACK,31/07/2023 09:53,,
************5315,44,Mrs Tracy J Waistle,U,Tracey Waistle,10252,C,10252,07/07/2023,2023,4,13/07/2023,2023,4,2023,4,33.48,5.58,27.90,B,20%,2023,4,Y,608472632,SCCS - The Survey Equipment Company,Chartwell Survey Book Invoice no: SIO11182,Other,6601,42200,,,People and Places,People and Places,Y,31/07/2023 09:54,JCARTRIDGE,7202,7879,N,,,,Y,31/07/2023 15:30,GSCOTT,13/07/2023,2023,4,TWAISTLE,13/07/2023 12:46,N,N
************5315,44,Mrs Tracy J Waistle,U,Tracey Waistle,14462,B,14462,07/07/2023,0,,01/01/1900,0,,0,,33.48,,,,,0,,,,SCCSSURVEY.CO.UK,,,,,,,,,Y,31/07/2023 09:54,JCARTRIDGE,7202,284,N,,,,Y,31/07/2023 15:30,GSCOTT,01/01/1900,0,,MBLACK,31/07/2023 09:53,,
************8571,46,Emma Lyons,U,Emma Lyons,14621,B,14621,26/09/2023,0,,01/01/1900,0,,0,,28.61,,,,,0,,,,FACEBK F74C3UTKM2,,,,,,,,,N,,,0,286,N,,,,N,,,01/01/1900,0,,MBLACK,29/09/2023 09:37,,
************8571,46,Emma Lyons,U,Emma Lyons,10468,C,10468,21/09/2023,2023,6,03/10/2023,2023,7,2023,7,57.77,0.00,57.77,C,0%,2023,7,,,Trainline,Return train to Manchester x 2 for comms hero event,Other,6501,33000,,,People and Places,People and Places,Y,03/10/2023 10:45,ELYONS,7316,8053,N,,,,Y,03/10/2023 10:49,MHESKETH,03/10/2023,2023,7,ELYONS,03/10/2023 10:44,N,N
************8571,46,Emma Lyons,U,Emma Lyons,14607,B,14607,21/09/2023,0,,01/01/1900,0,,0,,57.77,,,,,0,,,,TRAINLINE,,,,,,,,,Y,03/10/2023 10:45,ELYONS,7316,286,N,,,,Y,03/10/2023 10:49,MHESKETH,01/01/1900,0,,MBLACK,29/09/2023 09:37,,
************8571,46,Emma Lyons,U,Emma Lyons,10467,C,10467,13/09/2023,2023,6,03/10/2023,2023,7,2023,7,600.00,100.00,500.00,B,20%,2023,7,,,LG Comms,LG Comms academy tickets,Other,6501,17012,,,People and Places,People and Places,Y,03/10/2023 10:45,ELYONS,7316,8053,N,,,,Y,03/10/2023 10:49,MHESKETH,03/10/2023,2023,7,ELYONS,03/10/2023 10:32,N,N
************8571,46,Emma Lyons,U,Emma Lyons,14580,B,14580,13/09/2023,0,,01/01/1900,0,,0,,600.00,,,,,0,,,,PAYPAL LGCOMMS2018,,,,,,,,,Y,03/10/2023 10:45,ELYONS,7316,286,N,,,,Y,03/10/2023 10:49,MHESKETH,01/01/1900,0,,MBLACK,29/09/2023 09:37,,
************8571,46,Emma Lyons,U,Emma Lyons,14578,B,14578,12/09/2023,0,,01/01/1900,0,,0,,11.99,,,,,0,,,,PAYPAL APPLE.COM/BILL,,,,,,,,,N,,,0,286,N,,,,N,,,01/01/1900,0,,MBLACK,29/09/2023 09:37,,
************8571,46,Emma Lyons,U,Emma Lyons,14571,B,14571,09/09/2023,0,,01/01/1900,0,,0,,7.99,,,,,0,,,,PAYPAL DISNEYPLUS,,,,,,,,,N,,,0,286,N,,,,N,,,01/01/1900,0,,MBLACK,29/09/2023 09:37,,
************8571,46,Emma Lyons,U,Emma Lyons,14592,B,14592,04/09/2023,0,,01/01/1900,0,,0,,25.00,,,,,0,,,,FACEBK UBRMBTKKM2,,,,,,,,,N,,,0,286,N,,,,N,,,01/01/1900,0,,MBLACK,29/09/2023 09:37,,
************8571,46,Emma Lyons,U,Emma Lyons,14591,B,14591,03/09/2023,0,,01/01/1900,0,,0,,33.09,,,,,0,,,,FACEBK AFG9ETTGX2,,,,,,,,,N,,,0,286,N,,,,N,,,01/01/1900,0,,MBLACK,29/09/2023 09:37,,
************8571,46,Emma Lyons,U,Emma Lyons,14590,B,14590,02/09/2023,0,,01/01/1900,0,,0,,80.72,,,,,0,,,,MAILCHIMP,,,,,,,,,N,,,0,286,N,,,,N,,,01/01/1900,0,,MBLACK,29/09/2023 09:37,,
************8571,46,Emma Lyons,U,Emma Lyons,14570,B,14570,01/09/2023,0,,01/01/1900,0,,0,,30.87,,,,,0,,,,FACEBK FTJDUTPKM2,,,,,,,,,N,,,0,286,N,,,,N,,,01/01/1900,0,,MBLACK,29/09/2023 09:37,,
************8571,46,Emma Lyons,U,Emma Lyons,10429,C,10429,26/08/2023,2023,5,12/09/2023,2023,6,2023,6,19.52,0.00,19.52,C,0%,2023,5,,,Facebook,Paid social Theatres,Other,3040,46100,,,People and Places,People and Places,Y,13/09/2023 01:20,BMCDONOUGH,7276,8017,N,,,,Y,13/09/2023 09:15,MHESKETH,12/09/2023,2023,6,BMCDONOUGH,13/09/2023 01:17,N,N
************8571,46,Emma Lyons,U,Emma Lyons,14503,B,14503,26/08/2023,0,,01/01/1900,0,,0,,19.52,,,,,0,,,,FACEBK H9735TBKM2,,,,,,,,,Y,13/09/2023 01:20,BMCDONOUGH,7276,285,N,,,,Y,13/09/2023 09:15,MHESKETH,01/01/1900,0,,MBLACK,29/08/2023 11:47,,
************8571,46,Emma Lyons,U,Emma Lyons,10420,C,10420,25/08/2023,2023,5,12/09/2023,2023,6,2023,6,390.00,65.00,325.00,B,20%,2023,5,,,Eventbrite,Comms Hero Event Tickets,Other,6501,17012,,,People and Places,People and Places,Y,13/09/2023 00:28,BMCDONOUGH,7275,8008,N,,,,Y,13/09/2023 09:15,MHESKETH,12/09/2023,2023,6,BMCDONOUGH,13/09/2023 00:28,N,N
************8571,46,Emma Lyons,U,Emma Lyons,14502,B,14502,25/08/2023,0,,01/01/1900,0,,0,,390.00,,,,,0,,,,EB COMMSHERO WEEK 202,,,,,,,,,Y,13/09/2023 00:28,BMCDONOUGH,7275,285,N,,,,Y,13/09/2023 09:15,MHESKETH,01/01/1900,0,,MBLACK,29/08/2023 11:47,,
************8571,46,Emma Lyons,U,Emma Lyons,10427,C,10427,17/08/2023,2023,5,12/09/2023,2023,6,2023,6,21.00,0.00,21.00,C,0%,2023,5,,,Facebook,Paid social Market,Other,3720,46104,,,People and Places,People and Places,N,,,0,8015,N,,,,N,,,,0,0,BMCDONOUGH,13/09/2023 01:15,N,N
************8571,46,Emma Lyons,U,Emma Lyons,10428,C,10428,17/08/2023,2023,5,12/09/2023,2023,6,2023,6,25.00,0.00,25.00,C,0%,2023,5,,,Facebook,Paid social Market,Other,3720,46104,,,People and Places,People and Places,Y,13/09/2023 01:20,BMCDONOUGH,7276,8016,N,,,,Y,13/09/2023 09:15,MHESKETH,12/09/2023,2023,6,BMCDONOUGH,13/09/2023 01:16,N,N
************8571,46,Emma Lyons,U,Emma Lyons,14553,B,14553,17/08/2023,0,,01/01/1900,0,,0,,25.00,,,,,0,,,,FACEBK JKN8VT7KM2,,,,,,,,,Y,13/09/2023 01:20,BMCDONOUGH,7276,285,N,,,,Y,13/09/2023 09:15,MHESKETH,01/01/1900,0,,MBLACK,29/08/2023 11:47,,
************8571,46,Emma Lyons,U,Emma Lyons,10462,C,10462,12/08/2023,2023,5,27/09/2023,2023,6,2023,6,11.99,0.00,11.99,D,0%,2023,5,,,PayPal,PayPal Apple Charge for August 2023 (IT looking into why Emma Lyons has been charged),Other,3150,45300,,,Resources,Resources,Y,27/09/2023 15:34,JCARTRIDGE,7289,8049,N,,,,Y,27/09/2023 17:05,MHESKETH,27/09/2023,2023,6,JCARTRIDGE,27/09/2023 15:33,N,N
************8571,46,Emma Lyons,U,Emma Lyons,14541,B,14541,12/08/2023,0,,01/01/1900,0,,0,,11.99,,,,,0,,,,PAYPAL APPLE.COM/BILL,,,,,,,,,Y,27/09/2023 15:34,JCARTRIDGE,7289,285,N,,,,Y,27/09/2023 17:05,MHESKETH,01/01/1900,0,,MBLACK,29/08/2023 11:47,,
************8571,46,Emma Lyons,U,Emma Lyons,10430,C,10430,08/08/2023,2023,5,12/09/2023,2023,6,2023,6,21.00,0.00,21.00,C,0%,2023,5,,,Facebook,Paid social Market,Other,3720,46104,,,People and Places,People and Places,Y,13/09/2023 01:22,BMCDONOUGH,7277,8018,N,,,,Y,13/09/2023 09:15,MHESKETH,12/09/2023,2023,6,BMCDONOUGH,13/09/2023 01:21,N,N
************8571,46,Emma Lyons,U,Emma Lyons,14529,B,14529,08/08/2023,0,,01/01/1900,0,,0,,21.00,,,,,0,,,,FACEBK Z76BKTFKM2,,,,,,,,,Y,13/09/2023 01:22,BMCDONOUGH,7277,285,N,,,,Y,13/09/2023 09:15,MHESKETH,01/01/1900,0,,MBLACK,29/08/2023 11:47,,
************8571,46,Emma Lyons,U,Emma Lyons,10426,C,10426,03/08/2023,2023,5,12/09/2023,2023,6,2023,6,97.68,0.00,97.68,C,0%,2023,6,,,Facebook,Paid social,Other,6501,,,,People and Places,People and Places,Y,13/09/2023 01:20,BMCDONOUGH,7276,8014,N,,,,Y,13/09/2023 09:15,MHESKETH,12/09/2023,2023,6,BMCDONOUGH,13/09/2023 01:12,N,N
************8571,46,Emma Lyons,U,Emma Lyons,14524,B,14524,03/08/2023,0,,01/01/1900,0,,0,,97.68,,,,,0,,,,FACEBK QYTHGSTGX2,,,,,,,,,Y,13/09/2023 01:20,BMCDONOUGH,7276,285,N,,,,Y,13/09/2023 09:15,MHESKETH,01/01/1900,0,,MBLACK,29/08/2023 11:47,,
************8571,46,Emma Lyons,U,Emma Lyons,10419,C,10419,02/08/2023,2023,5,12/09/2023,2023,6,2023,6,173.57,0.00,173.57,C,0%,2023,6,,,Mailchimp,Mailchimp subscription fees,Other,6501,,,,People and Places,People and Places,Y,13/09/2023 00:11,BMCDONOUGH,7274,8007,N,,,,Y,13/09/2023 09:15,MHESKETH,12/09/2023,2023,6,BMCDONOUGH,13/09/2023 00:09,N,N
************8571,46,Emma Lyons,U,Emma Lyons,14521,B,14521,02/08/2023,0,,01/01/1900,0,,0,,173.57,,,,,0,,,,MAILCHIMP,,,,,,,,,Y,13/09/2023 00:11,BMCDONOUGH,7274,285,N,,,,Y,13/09/2023 09:15,MHESKETH,01/01/1900,0,,MBLACK,29/08/2023 11:47,,
************8571,46,Emma Lyons,U,Emma Lyons,10425,C,10425,26/07/2023,2023,4,12/09/2023,2023,6,2023,6,8.00,0.00,8.00,C,0%,2023,5,,,Facebook,Paid social Theatres,Other,3040,46100,,,People and Places,People and Places,Y,13/09/2023 01:20,BMCDONOUGH,7276,8013,N,,,,Y,13/09/2023 09:15,MHESKETH,12/09/2023,2023,6,BMCDONOUGH,13/09/2023 01:11,N,N
************8571,46,Emma Lyons,U,Emma Lyons,14432,B,14432,26/07/2023,0,,01/01/1900,0,,0,,8.00,,,,,0,,,,FACEBK N42D6SKKM2,,,,,,,,,Y,13/09/2023 01:20,BMCDONOUGH,7276,284,N,,,,Y,13/09/2023 09:15,MHESKETH,01/01/1900,0,,MBLACK,31/07/2023 09:53,,
************8571,46,Emma Lyons,U,Emma Lyons,10424,C,10424,13/07/2023,2023,4,12/09/2023,2023,6,2023,6,21.00,0.00,21.00,C,0%,2023,5,,,Facebook,Paid social theatres,Other,3040,46100,,,People and Places,People and Places,Y,13/09/2023 01:20,BMCDONOUGH,7276,8012,N,,,,Y,13/09/2023 09:15,MHESKETH,12/09/2023,2023,6,BMCDONOUGH,13/09/2023 01:10,N,N
************8571,46,Emma Lyons,U,Emma Lyons,14465,B,14465,13/07/2023,0,,01/01/1900,0,,0,,21.00,,,,,0,,,,FACEBK 4PTLGRXKM2,,,,,,,,,Y,13/09/2023 01:20,BMCDONOUGH,7276,284,N,,,,Y,13/09/2023 09:15,MHESKETH,01/01/1900,0,,MBLACK,31/07/2023 09:53,,
************8571,46,Emma Lyons,U,Emma Lyons,10461,C,10461,12/07/2023,2023,4,27/09/2023,2023,6,2023,6,11.99,0.00,11.99,D,0%,2023,5,,,PayPal,PayPal Apple Charge for July 2023 (IT looking into why Emma Lyons has been charged),Other,3150,45300,,,Resources,Resources,Y,27/09/2023 15:34,JCARTRIDGE,7289,8048,N,,,,Y,27/09/2023 17:05,MHESKETH,27/09/2023,2023,6,JCARTRIDGE,27/09/2023 15:32,N,N
************8571,46,Emma Lyons,U,Emma Lyons,14470,B,14470,12/07/2023,0,,01/01/1900,0,,0,,11.99,,,,,0,,,,PAYPAL APPLE.COM/BILL,,,,,,,,,Y,27/09/2023 15:34,JCARTRIDGE,7289,284,N,,,,Y,27/09/2023 17:05,MHESKETH,01/01/1900,0,,MBLACK,31/07/2023 09:53,,
************8571,46,Emma Lyons,U,Emma Lyons,10423,C,10423,05/07/2023,2023,4,12/09/2023,2023,6,2023,6,21.00,0.00,21.00,C,0%,2023,5,,,Facebook,Paid social Theatres,Other,3040,46100,,,People and Places,People and Places,Y,13/09/2023 01:20,BMCDONOUGH,7276,8011,N,,,,Y,13/09/2023 09:15,MHESKETH,12/09/2023,2023,6,BMCDONOUGH,13/09/2023 01:09,N,N
************8571,46,Emma Lyons,U,Emma Lyons,14446,B,14446,05/07/2023,0,,01/01/1900,0,,0,,21.00,,,,,0,,,,FACEBK ECBZ5SPKM2,,,,,,,,,Y,13/09/2023 01:20,BMCDONOUGH,7276,284,N,,,,Y,13/09/2023 09:15,MHESKETH,01/01/1900,0,,MBLACK,31/07/2023 09:53,,
************8571,46,Emma Lyons,U,Emma Lyons,10422,C,10422,03/07/2023,2023,4,12/09/2023,2023,6,2023,6,80.39,0.00,80.39,C,0%,2023,6,,,Facebook,Facebook Paid social,Other,6501,,,,People and Places,People and Places,Y,13/09/2023 01:20,BMCDONOUGH,7276,8010,N,,,,Y,13/09/2023 09:15,MHESKETH,12/09/2023,2023,6,BMCDONOUGH,13/09/2023 01:04,N,N
************8571,46,Emma Lyons,U,Emma Lyons,14442,B,14442,03/07/2023,0,,01/01/1900,0,,0,,80.39,,,,,0,,,,FACEBK M63GLRXGX2,,,,,,,,,Y,13/09/2023 01:20,BMCDONOUGH,7276,284,N,,,,Y,13/09/2023 09:15,MHESKETH,01/01/1900,0,,MBLACK,31/07/2023 09:53,,
************8571,46,Emma Lyons,U,Emma Lyons,10418,C,10418,02/07/2023,2023,4,12/09/2023,2023,6,2023,6,253.71,0.00,253.71,C,0%,2023,6,,,Mailchimp,Mailchimp subscription fees,Other,6501,,,,People and Places,People and Places,Y,13/09/2023 00:08,BMCDONOUGH,7273,8006,N,,,,Y,13/09/2023 09:15,MHESKETH,12/09/2023,2023,6,BMCDONOUGH,13/09/2023 00:06,N,N
************8571,46,Emma Lyons,U,Emma Lyons,14438,B,14438,02/07/2023,0,,01/01/1900,0,,0,,253.71,,,,,0,,,,MAILCHIMP,,,,,,,,,Y,13/09/2023 00:08,BMCDONOUGH,7273,284,N,,,,Y,13/09/2023 09:15,MHESKETH,01/01/1900,0,,MBLACK,31/07/2023 09:53,,
************1295,47,C Postle,U,Catherine Postle,10440,C,10440,19/09/2023,2023,6,19/09/2023,2023,6,2023,6,42.33,0.00,42.33,C,0%,2023,6,,,Morrisons,"Biscuits, Tea, croissants, napkins, for CEO",Other,6503,46842,,,Resources,Resources,Y,29/09/2023 09:38,HGRUNDY,7308,8029,N,,,,Y,02/10/2023 11:46,MHESKETH,19/09/2023,2023,6,JCARTRIDGE,19/09/2023 15:15,N,N
************1295,47,C Postle,U,Catherine Postle,14583,B,14583,19/09/2023,0,,01/01/1900,0,,0,,42.33,,,,,0,,,,WM MORRISONS STORE,,,,,,,,,Y,29/09/2023 09:38,HGRUNDY,7308,286,N,,,,Y,02/10/2023 11:46,MHESKETH,01/01/1900,0,,MBLACK,29/09/2023 09:37,,
************1295,47,C Postle,U,Catherine Postle,10341,C,10341,07/08/2023,2023,5,21/08/2023,2023,5,2023,5,26.92,4.49,22.43,B,20%,2023,5,,,HOME BARGAINS,Various boxes of Chocolates,Other,6503,46842,,,Resources,Resources,Y,29/08/2023 11:48,JCARTRIDGE,7252,7955,N,,,,Y,29/08/2023 13:06,MHESKETH,21/08/2023,2023,5,JCARTRIDGE,21/08/2023 10:08,N,N
************1295,47,C Postle,U,Catherine Postle,14528,B,14528,07/08/2023,0,,01/01/1900,0,,0,,26.92,,,,,0,,,,HOME BARGAINS,,,,,,,,,Y,29/08/2023 11:48,JCARTRIDGE,7252,285,N,,,,Y,29/08/2023 13:06,MHESKETH,01/01/1900,0,,MBLACK,29/08/2023 11:47,,
************4321,48,Roger Brocklebank,S,Tracey Waistle,10459,C,10459,20/09/2023,2023,6,27/09/2023,2023,6,2023,6,58.46,9.74,48.72,B,20%,2023,6,Y,733097336,The Plant Place,Tree and materials Invoice no: 037645,Other,3222,28003,,,People and Places,People and Places,A,29/09/2023 09:38,HGRUNDY,7309,8046,N,,,,P,,KWINSTANLEY,,0,0,TWAISTLE,27/09/2023 13:53,N,N
************4321,48,Roger Brocklebank,S,Tracey Waistle,14587,B,14587,20/09/2023,0,,01/01/1900,0,,0,,58.46,,,,,0,,,,THE PLANT PLACE,,,,,,,,,A,29/09/2023 09:38,HGRUNDY,7309,286,N,,,,P,,KWINSTANLEY,01/01/1900,0,,MBLACK,29/09/2023 09:37,,
